{"text_format":"1","workbook":"xlsx","n_sheets":20,"sheets":["Instructions","META Data","Aero Forces 2a","Velocity Profile 2a","Surface Data 2a","Aero Forces 2b","Velocity Profile 2b","Surface Data 2b","Surface Data (Test 2a)","Surface Data (Test 2b)","Force Plots 2a","Velocity Plots 2a","Pressure Probe Plots 2a","Skin Friction Plot 2a","Force Plots 2b","Velocity Plots 2b","Pressure Probe Plots 2b","Skin Friction Plot 2b","FlowField 2a","FlowField 2b"],"not_rendered":{"charts":82,"images":45,"macros":1,"external_links":6,"defined_names":65,"comments":3,"pivot_tables":0},"unopened":[],"bounds":{"document_bytes":16777216,"sheet_cells":100000,"rows_first":2000,"rows_last":500,"rows_between":2000,"halvings":0,"cell_chars":16384,"cell_head_chars":4096},"cells_cut":0,"cells_raw":0,"read":"whole","date_system":"1900"}

{"sheet":"Instructions","index":0,"n_rows":0,"n_cols":0,"rows_kept":0,"cut":false,"hidden":false,"merged":[]}

{"sheet":"META Data","index":1,"n_rows":108,"n_cols":17,"rows_kept":108,"cut":false,"hidden":false,"merged":[[106,1,106,3],[50,9,50,17],[66,9,66,17],[70,9,70,17],[74,9,74,17],[98,1,98,2],[99,1,99,2],[100,1,100,2],[83,1,83,2],[84,1,84,2],[87,1,87,2],[88,1,88,2],[96,1,96,2],[70,1,70,4],[75,1,75,2],[76,1,76,2],[48,1,48,2],[52,1,52,2],[59,1,59,2],[50,1,50,2],[71,1,71,2],[64,1,64,2],[65,1,65,2],[68,1,68,2],[51,1,51,2],[60,1,60,2],[61,1,61,2],[62,1,62,2],[63,1,63,2],[66,1,66,4],[67,1,67,2],[28,1,28,2],[27,1,27,2],[29,1,29,2],[30,1,30,2],[31,1,31,4],[39,1,39,2],[45,1,45,2],[43,1,43,2],[42,1,42,2],[36,1,36,2],[37,1,37,2],[3,9,3,17],[8,9,8,17],[18,9,18,17],[25,9,25,17],[3,1,3,2],[15,1,15,2],[16,1,16,2],[18,1,18,2],[8,1,8,2],[10,1,10,2],[11,1,11,2],[12,1,12,2],[13,1,13,2],[14,1,14,2],[19,1,19,2],[20,1,20,2],[9,1,9,2],[5,1,5,2],[6,1,6,2],[22,1,22,2],[25,1,25,2],[23,1,23,2],[21,1,21,2],[26,1,26,2],[82,1,82,2],[78,1,78,2],[72,1,72,2],[74,1,74,2],[80,1,80,2],[81,1,81,2],[77,1,77,2],[79,1,79,2],[33,1,33,2],[32,1,32,2],[35,1,35,2],[46,1,46,2],[47,1,47,2],[38,1,38,4],[41,1,41,2]]}
[]
[null,"Required Input:"]
[]
[null,"DrivAer Test Case:",null,null,"Test case 2a","Test Case 2b \n(w/ Front Wheel Deflector)",null,"Example Input:",null,"Pull down options"]
[]
[null,"Submission relates to TFG:",null,null,null,null,null,"TFG2: Noise Factor",null,"TFG1 : Meshing","TFG2: Noise Factor","TFG3: AI/ML","TFG4: SRS","TFG5: HPC","Multiple"]
[null,"if \"Multiple\" entre manually:",null,null,null,null,null,"TFG2 / TFG5"]
[]
[null,"Analyst:"]
[null,"Participant ID:",null,null,null,null,null,"01"]
[null,"Lastname:",null,null,null,null,null,"Hupertz"]
[null,"Firstname:",null,null,null,null,null,"Burkhard"]
[null,"Affiliation:",null,null,null,null,null,"Ford"]
[null,"Email:",null,null,null,null,null,"bhupertz@ford.com"]
[null,"Date:",null,null,null,null,null,"2021-05-07"]
[null,"Legend Suffix:",null,null,null,null,null,"v1"]
[null,"Plot Legend (automatically completed):",null,null,{"$f":"\"ID\"&E10&\"_\"&E22&\"_\"&E16","v":"ID__"},{"$f":"\"ID\"&F10&\"_\"&F22&\"_\"&F16","v":"ID__"},null,{"$f":"\"ID\"&H10&\"_\"&H22&\"_\"&H16","v":"ID01_CCM+_v1"}]
[]
[null,"CFD/AI Software:"]
[null,"AI or CFD based solver:",null,null,null,null,null,null,null,"AI","CFD"]
[null,"Software Vendor",null,null,null,null,null,"Siemens"]
[null,"CFD Solver",null,null,null,null,null,"CCM+",null,"OpenFOAM","IconCFD","CCM+","Fluent","PowerFLOW","Fire","CFD++","Other"]
[null,"if \"CFD Solver: Other\" - CFD Solver:"]
[null,"CFD Solver Version",null,null,null,null,null,"14.02"]
[]
[null,"Volume Mesh:"]
[null,"Selected Mesh",null,null,null,null,null,"ANSA low-Re",null,"ANSA (ACFD5)","ANSA (ACFD4)","ANSA hiRe (ACFD2)","ANSA loRe (ACFD2)","LBM","Other"]
[null,"Virtual WT length XWT_up [m]:",null,null,{"$f":"IF(OR(E$27=$K$27,E$27=$L$27,E$27=$M$27),J28,\"\")","v":""},{"$f":"IF(OR(F$27=$K$27,F$27=$L$27,F$27=$M$27),J28,\"\")","v":""},null,"-40",null,"-40"]
[null,"Virtual WT length XWT_down [m]:",null,null,{"$f":"IF(OR(E$27=$K$27,E$27=$L$27,E$27=$M$27),J29,\"\")","v":""},{"$f":"IF(OR(F$27=$K$27,F$27=$L$27,F$27=$M$27),J29,\"\")","v":""},null,"80",null,"80"]
[null,"Virtual WT Width YWT [m]:",null,null,{"$f":"IF(OR(E$27=$K$27,E$27=$L$27,E$27=$M$27),J30,\"\")","v":""},{"$f":"IF(OR(F$27=$K$27,F$27=$L$27,F$27=$M$27),J30,\"\")","v":""},null,44,null,"44"]
[null,"Virtual WT Height ZWT [m]:",null,null,{"$f":"IF(OR(E$27=$K$27,E$27=$L$27,E$27=$M$27),J31,\"\")","v":""},{"$f":"IF(OR(F$27=$K$27,F$27=$L$27,F$27=$M$27),J31,\"\")","v":""},null,20,null,"20"]
[null,"if \"LBM\" please provide the following information:"]
[null,"Volume Mesher:",null,null,null,null,null,"PowerFLOW"]
[null,"Minimum Voxel Size [mm]:"]
[null,null,"# of Voxels [mio voxels]:"]
[null,"Virtual Windtunnel size XWT/YWT/ZWT [m]:",null,null,null,null,null,"120/44/20"]
[null,"Virtual WT length XWT_up [m]:",null,null,null,null,null,40]
[null,"Virtual WT length XWT_down [m]:",null,null,null,null,null,80]
[null,"if \"Other\" please provide the following information:"]
[null,"Volume Mesher:",null,null,null,null,null,"CCM+ Poly Mesher"]
[null,null,"Mesh type:",null,null,null,null,"Polyhedral"]
[null,"1st layer cell height [mm]:",null,null,null,null,null,1]
[null,"Total boundary layer height [mm]:",null,null,null,null,null,15]
[null,"Number of layers [mm]:",null,null,null,null,null,10]
[null,null,"Boundary Layer growth rate:",null,null,null,null,1.1000000000000001]
[null,"# of volume cells [mio cells]:"]
[null,"Virtual Windtunnel size XWT/YWT/ZWT [m]:",null,null,null,null,null,"120/44/20"]
[null,"Virtual WT length XWT_up [m]:",null,null,null,null,null,40]
[null,"Virtual WT length XWT_down [m]:",null,null,null,null,null,80]
[]
[null,"CFD Solver:"]
[null,"Solver Type:",null,null,null,null,null,"FVM",null,"FVM","FEM","FDM","LBM"]
[null,"Compressibility:",null,null,null,null,null,"compressible",null,"Compressible","Incompressible"]
[null,null,"Pressure/ Density Based:",null,null,null,null,"Pressure",null,"Pressure ","Density"]
[null,null,"Segregate/Coupled:",null,null,null,null,"Segregated",null,"Coupled","Segregated"]
[null,null,"Velocity convection scheme:",null,null,null,null,"HDS"]
[null,null,"Order of accuracy (space/time):",null,null,null,null,"2nd/2nd"]
[null,null,"Steady-State/Transient:",null,null,null,null,"Transient",null,"Steady State","Transient"]
[null,null,"Hardware Type:",null,null,null,null,"GPU",null,"CPU","GPU"]
[null,"Hardware Spec (CPU):",null,null,null,null,null,"AMD EPYC 7371"]
[null,"Hardware Spec (GPU):",null,null,null,null,null,"H100"]
[null,"# of nodes used:",null,null,null,null,null,256]
[null,"# of CPU cores per node:"]
[null,"# of GPUs per node:"]
[null,"Wall clock time [h]:",null,null,null,null,null,48]
[null,"Wall Clock time per timestep/iteration [s]:"]
[null,"if \"Transient\" please provide the following information:"]
[null,"Time step Dt [s]:",null,null,null,null,null,"0.0001"]
[null,"Simulated physical time [s]:",null,null,null,null,null,4]
[null,null,"Time averaging periode [s]:",null,null,null,null,2.5]
[null,"if \"Steady-State\" please provide the following information:"]
[null,"# of iterations:",null,null,null,null,null,8000]
[null,"Avg. window  [# of iterations]:",null,null,null,null,null,4000]
[]
[null,"Turbulence Model"]
[null,"Turbulence Model Type:",null,null,null,null,null,"Hybrid",null,"RANS","Hybrid","LES","DNS","Other"]
[null,"Hybrid Model:",null,null,null,null,null,"iDDES  ",null,"DES97","DDES","iDDES","SBES","SAS","PANS","VLES","Other"]
[null,"Hybrid Model - Other:"]
[null,"RANS Model:",null,null,null,null,null,"k-w SST",null,"k-e real","k-w SST","k-z-f","GEKO","SA","LagEB","Other"]
[null,"RANS Model - Other:"]
[null,"LES Model:",null,null,null,null,null,"Smag",null,"Smag","DynSmag","Vreman","WALE","sigma","Other"]
[null,"LES Model - Other:"]
[null,"if \"Turb. model: Other\" - Turb. Model:"]
[null,"Near Wall Treatment:",null,null,null,null,null,"hiRe",null,"None (loRe)","hiRe","allY+","Other"]
[null,"Near Wall Treatment - Other:"]
[null,null,"Comments (Optional):"]
[]
[null,"AI Method"]
[null,"High-Level Method:",null,null,null,null,null,"GNN",null,"GNN (default)","CNN","VAE","FNO","Other"]
[null,null,"High-Level Method - Other:",null,null,null,null,"MeshGraphNet"]
[null,null,"Predicted quantity:",null,null,null,null,"Volume",null,"Volume","Surface","Forces/Moments","Slices","All","Other"]
[null,null,"Predicted quantity - Other:",null,null,null,null,null,null,"text here if other"]
[null,null,"Method to predict forces/moments:",null,null,null,null,null,null,"Integration of surface pressure/shear-stress","Direct force/moments"]
[null,null,"Total number of cases used for training:",null,null,null,null,100,null,"numerical value"]
[null,null,"total # of cases used for validation",null,null,null,null,30,null,"numerical value"]
[null,null,"Downsample technique (if needed):",null,null,null,null,"50% uniform downsampling",null,"free text"]
[null,"Epochs:",null,null,null,null,null,1000,null,"number value"]
[null,null,"Hardware used:",null,null,null,null,"GPU",null,"GPU","CPU","TPU"]
[null,"Hardware Spec (GPU):",null,null,null,null,null,"Nvidia A100",null,"free text"]
[null,"Hardware Spec (CPU):",null,null,null,null,null,"AMD EPYC 7371"]
[null,"Hardware Spec (TPU):"]
[null,null,"Number of nodes :",null,null,null,null,1,null,"free text"]
[null,null,"Training time [min]:"]
[null,null,"Inference preprocessing time [s]:"]
[null,null,"Inference time [s]:"]
[]
[null,"Comments (Optional):"]
[null,null,null,null,"I have no general comments","I have no general comments"]

{"sheet":"Aero Forces 2a","index":2,"n_rows":304,"n_cols":20,"rows_kept":304,"cut":false,"hidden":false,"merged":[[39,2,67,9],[38,2,38,9],[23,2,23,7],[24,3,24,7],[25,3,25,7],[26,3,26,7],[27,3,27,7],[34,2,34,7],[9,3,11,3],[9,4,11,4],[9,5,11,5],[9,6,11,6],[35,2,35,7],[33,2,33,7],[22,2,22,7],[9,7,11,7],[17,2,17,7],[19,2,19,7],[20,2,20,7],[21,2,21,7],[9,2,11,2],[1,11,1,14],[1,16,1,19],[7,3,7,7],[1,2,1,10],[4,3,4,7],[3,2,3,9],[5,3,5,7],[4,8,4,9],[5,8,5,9]]}
[]
[null,null,"Aerodynamics Forces",null,null,null,null,null,null,null,null,"Simulation Stabilization/Convergence\n(Time history)",null,null,null,null,"Aerodynamic Force Development Plots"]
[null,null,null,null,null,null,null,null,null,null,null,"Time [s]","CD [-]","CL [-]","CS [-]",null,null,"x [mm]","CD [-]","CL [-]"]
[null,null,"Required input:",null,null,null,null,null,null,null,null,null,null,null,null,null,1]
[null,null,"1)","Aerodynamic forces (CD; CL; CLf; CLr; Cs)",null,null,null,null,"mandatory",null,null,null,null,null,null,null,2]
[null,null,"2)","Aerodynamic force development (CD; CL)",null,null,null,null,"recommended",null,null,null,null,null,null,null,3]
[null,null,null,null,null,null,null,null,null,null,null,null,null,null,null,null,4]
[null,null,"Simulation title:",{"$f":"'META Data'!E17","v":"ID__"},null,null,null,null,null,null,null,null,null,null,null,null,5]
[null,null,"Aero Force Coeff:","CD","CL","CLf","CLr","CS",null,null,null,null,null,null,null,null,6]
[null,null,"AVERAGE\n - based on participant best practice\n - will be used for aero force reporting",null,null,null,null,null,null,null,null,null,null,null,null,null,7]
[null,null,null,null,null,null,null,null,null,null,null,null,null,null,null,null,8]
[null,null,null,null,null,null,null,null,null,null,null,null,null,null,null,null,9]
[null,null,null,null,null,null,null,null,null,null,null,null,null,null,null,null,10]
[null,null,null,null,null,null,null,null,null,null,null,null,null,null,null,null,11]
[null,null,"Standardized Meancalc based evaluation of aero dynamic force time traces",null,null,null,null,null,null,null,null,null,null,null,null,null,12]
[null,null,"    - Meancalc output will not be used for aero force reporting and comparison!",null,null,null,null,null,null,null,null,null,null,null,null,null,13]
[null,null,"    - Meancalc output will be used for result quality checking and statistical error reporting",null,null,null,null,null,null,null,null,null,null,null,null,null,14]
[null,null,"    - Access Meancalc via: ",null,null,null,null,null,null,null,null,null,null,null,null,null,15]
[null,null,"           https://meancalc.app.upstream-cfd.com",null,null,null,null,null,null,null,null,null,null,null,null,null,16]
[null,null,"    - Define start point of averaging period (timestep)",null,null,null,null,null,null,null,null,null,null,null,null,null,17]
[null,null,"        Chosen timestep should match the timestep selected to calculate the aero force averages (D10 - H10)",null,null,null,null,null,null,null,null,null,null,null,null,null,18]
[null,null,"    - Deactivate \"Automatic transient detection\"",null,null,null,null,null,null,null,null,null,null,null,null,null,19]
[null,null,"    - Run Meancalc for each of the aerodynamic forces (CD, CL, CS)",null,null,null,null,null,null,null,null,null,null,null,null,null,20]
[null,null,"    - Capture Meancalc output in table below",null,null,null,null,null,null,null,null,null,null,null,null,null,21]
[null,null,"Averaging start time [sec]",null,null,null,null,null,null,null,null,null,null,null,null,null,22]
[null,null,"Averaging start time [timestep]",null,null,null,null,null,null,null,null,null,null,null,null,null,23]
[null,null,"Averaging end time [sec]",null,null,null,null,null,null,null,null,null,null,null,null,null,24]
[null,null,"Length of averaging interval [sec]",{"$f":"D27-D25","v":0},null,null,null,null,null,null,null,null,null,null,null,null,25]
[null,null,"Mean value m",null,null,null,null,null,null,null,null,null,null,null,null,null,26]
[null,null,"Error Mean Value s(m)",null,null,null,null,null,null,null,null,null,null,null,null,null,27]
[null,null,"Standard deviation s",null,null,null,null,null,null,null,null,null,null,null,null,null,28]
[null,null,"Error Standard Deviation s(s)",{"$f":"D30/SQRT(2)","v":0},{"$f":"E30/SQRT(2)","v":0},null,null,{"$f":"H30/SQRT(2)","v":0},null,null,null,null,null,null,null,null,29]
[null,null,null,null,null,null,null,null,null,null,null,null,null,null,null,null,30]
[null,null,"    - Activate \"Automatic transient detection\"",null,null,null,null,null,null,null,null,null,null,null,null,null,31]
[null,null,"    - Rerun Meancalc for each of the aerodynamic forces (CD, CL, CS)",null,null,null,null,null,null,null,null,null,null,null,null,null,32]
[null,null,"    - Capture Meancalc recommended averaging start timestep (nskip) in table below",null,null,null,null,null,null,null,null,null,null,null,null,null,33]
[null,null,"Averaging start timestep [nskip]",null,null,null,null,null,null,null,null,null,null,null,null,null,34]
[null,null,null,null,null,null,null,null,null,null,null,null,null,null,null,null,35]
[null,null,"Input picture of Meancalc anaylsis of aerodynamic drag CD time trace",null,null,null,null,null,null,null,null,null,null,null,null,null,36]
[null,null,null,null,null,null,null,null,null,null,null,null,null,null,null,null,37]
[null,null,null,null,null,null,null,null,null,null,null,null,null,null,null,null,38]
[null,null,null,null,null,null,null,null,null,null,null,null,null,null,null,null,39]
[null,null,null,null,null,null,null,null,null,null,null,null,null,null,null,null,40]
[null,null,null,null,null,null,null,null,null,null,null,null,null,null,null,null,41]
[null,null,null,null,null,null,null,null,null,null,null,null,null,null,null,null,42]
[null,null,null,null,null,null,null,null,null,null,null,null,null,null,null,null,43]
[null,null,null,null,null,null,null,null,null,null,null,null,null,null,null,null,44]
[null,null,null,null,null,null,null,null,null,null,null,null,null,null,null,null,45]
[null,null,null,null,null,null,null,null,null,null,null,null,null,null,null,null,46]
[null,null,null,null,null,null,null,null,null,null,null,null,null,null,null,null,47]
[null,null,null,null,null,null,null,null,null,null,null,null,null,null,null,null,48]
[null,null,null,null,null,null,null,null,null,null,null,null,null,null,null,null,49]
[null,null,null,null,null,null,null,null,null,null,null,null,null,null,null,null,50]
[null,null,null,null,null,null,null,null,null,null,null,null,null,null,null,null,51]
[null,null,null,null,null,null,null,null,null,null,null,null,null,null,null,null,52]
[null,null,null,null,null,null,null,null,null,null,null,null,null,null,null,null,53]
[null,null,null,null,null,null,null,null,null,null,null,null,null,null,null,null,54]
[null,null,null,null,null,null,null,null,null,null,null,null,null,null,null,null,55]
[null,null,null,null,null,null,null,null,null,null,null,null,null,null,null,null,56]
[null,null,null,null,null,null,null,null,null,null,null,null,null,null,null,null,57]
[null,null,null,null,null,null,null,null,null,null,null,null,null,null,null,null,58]
[null,null,null,null,null,null,null,null,null,null,null,null,null,null,null,null,59]
[null,null,null,null,null,null,null,null,null,null,null,null,null,null,null,null,60]
[null,null,null,null,null,null,null,null,null,null,null,null,null,null,null,null,61]
[null,null,null,null,null,null,null,null,null,null,null,null,null,null,null,null,62]
[null,null,null,null,null,null,null,null,null,null,null,null,null,null,null,null,63]
[null,null,null,null,null,null,null,null,null,null,null,null,null,null,null,null,64]
[null,null,null,null,null,null,null,null,null,null,null,null,null,null,null,null,65]
[null,null,null,null,null,null,null,null,null,null,null,null,null,null,null,null,66]
[null,null,null,null,null,null,null,null,null,null,null,null,null,null,null,null,67]
[null,null,null,null,null,null,null,null,null,null,null,null,null,null,null,null,68]
[null,null,null,null,null,null,null,null,null,null,null,null,null,null,null,null,69]
[null,null,null,null,null,null,null,null,null,null,null,null,null,null,null,null,70]
[null,null,null,null,null,null,null,null,null,null,null,null,null,null,null,null,71]
[null,null,null,null,null,null,null,null,null,null,null,null,null,null,null,null,72]
[null,null,null,null,null,null,null,null,null,null,null,null,null,null,null,null,73]
[null,null,null,null,null,null,null,null,null,null,null,null,null,null,null,null,74]
[null,null,null,null,null,null,null,null,null,null,null,null,null,null,null,null,75]
[null,null,null,null,null,null,null,null,null,null,null,null,null,null,null,null,76]
[null,null,null,null,null,null,null,null,null,null,null,null,null,null,null,null,77]
[null,null,null,null,null,null,null,null,null,null,null,null,null,null,null,null,78]
[null,null,null,null,null,null,null,null,null,null,null,null,null,null,null,null,79]
[null,null,null,null,null,null,null,null,null,null,null,null,null,null,null,null,80]
[null,null,null,null,null,null,null,null,null,null,null,null,null,null,null,null,81]
[null,null,null,null,null,null,null,null,null,null,null,null,null,null,null,null,82]
[null,null,null,null,null,null,null,null,null,null,null,null,null,null,null,null,83]
[null,null,null,null,null,null,null,null,null,null,null,null,null,null,null,null,84]
[null,null,null,null,null,null,null,null,null,null,null,null,null,null,null,null,85]
[null,null,null,null,null,null,null,null,null,null,null,null,null,null,null,null,86]
[null,null,null,null,null,null,null,null,null,null,null,null,null,null,null,null,87]
[null,null,null,null,null,null,null,null,null,null,null,null,null,null,null,null,88]
[null,null,null,null,null,null,null,null,null,null,null,null,null,null,null,null,89]
[null,null,null,null,null,null,null,null,null,null,null,null,null,null,null,null,90]
[null,null,null,null,null,null,null,null,null,null,null,null,null,null,null,null,91]
[null,null,null,null,null,null,null,null,null,null,null,null,null,null,null,null,92]
[null,null,null,null,null,null,null,null,null,null,null,null,null,null,null,null,93]
[null,null,null,null,null,null,null,null,null,null,null,null,null,null,null,null,94]
[null,null,null,null,null,null,null,null,null,null,null,null,null,null,null,null,95]
[null,null,null,null,null,null,null,null,null,null,null,null,null,null,null,null,96]
[null,null,null,null,null,null,null,null,null,null,null,null,null,null,null,null,97]
[null,null,null,null,null,null,null,null,null,null,null,null,null,null,null,null,98]
[null,null,null,null,null,null,null,null,null,null,null,null,null,null,null,null,99]
[null,null,null,null,null,null,null,null,null,null,null,null,null,null,null,null,100]
[null,null,null,null,null,null,null,null,null,null,null,null,null,null,null,null,101]
[null,null,null,null,null,null,null,null,null,null,null,null,null,null,null,null,102]
[null,null,null,null,null,null,null,null,null,null,null,null,null,null,null,null,103]
[null,null,null,null,null,null,null,null,null,null,null,null,null,null,null,null,104]
[null,null,null,null,null,null,null,null,null,null,null,null,null,null,null,null,105]
[null,null,null,null,null,null,null,null,null,null,null,null,null,null,null,null,106]
[null,null,null,null,null,null,null,null,null,null,null,null,null,null,null,null,107]
[null,null,null,null,null,null,null,null,null,null,null,null,null,null,null,null,108]
[null,null,null,null,null,null,null,null,null,null,null,null,null,null,null,null,109]
[null,null,null,null,null,null,null,null,null,null,null,null,null,null,null,null,110]
[null,null,null,null,null,null,null,null,null,null,null,null,null,null,null,null,111]
[null,null,null,null,null,null,null,null,null,null,null,null,null,null,null,null,112]
[null,null,null,null,null,null,null,null,null,null,null,null,null,null,null,null,113]
[null,null,null,null,null,null,null,null,null,null,null,null,null,null,null,null,114]
[null,null,null,null,null,null,null,null,null,null,null,null,null,null,null,null,115]
[null,null,null,null,null,null,null,null,null,null,null,null,null,null,null,null,116]
[null,null,null,null,null,null,null,null,null,null,null,null,null,null,null,null,117]
[null,null,null,null,null,null,null,null,null,null,null,null,null,null,null,null,118]
[null,null,null,null,null,null,null,null,null,null,null,null,null,null,null,null,119]
[null,null,null,null,null,null,null,null,null,null,null,null,null,null,null,null,120]
[null,null,null,null,null,null,null,null,null,null,null,null,null,null,null,null,121]
[null,null,null,null,null,null,null,null,null,null,null,null,null,null,null,null,122]
[null,null,null,null,null,null,null,null,null,null,null,null,null,null,null,null,123]
[null,null,null,null,null,null,null,null,null,null,null,null,null,null,null,null,124]
[null,null,null,null,null,null,null,null,null,null,null,null,null,null,null,null,125]
[null,null,null,null,null,null,null,null,null,null,null,null,null,null,null,null,126]
[null,null,null,null,null,null,null,null,null,null,null,null,null,null,null,null,127]
[null,null,null,null,null,null,null,null,null,null,null,null,null,null,null,null,128]
[null,null,null,null,null,null,null,null,null,null,null,null,null,null,null,null,129]
[null,null,null,null,null,null,null,null,null,null,null,null,null,null,null,null,130]
[null,null,null,null,null,null,null,null,null,null,null,null,null,null,null,null,131]
[null,null,null,null,null,null,null,null,null,null,null,null,null,null,null,null,132]
[null,null,null,null,null,null,null,null,null,null,null,null,null,null,null,null,133]
[null,null,null,null,null,null,null,null,null,null,null,null,null,null,null,null,134]
[null,null,null,null,null,null,null,null,null,null,null,null,null,null,null,null,135]
[null,null,null,null,null,null,null,null,null,null,null,null,null,null,null,null,136]
[null,null,null,null,null,null,null,null,null,null,null,null,null,null,null,null,137]
[null,null,null,null,null,null,null,null,null,null,null,null,null,null,null,null,138]
[null,null,null,null,null,null,null,null,null,null,null,null,null,null,null,null,139]
[null,null,null,null,null,null,null,null,null,null,null,null,null,null,null,null,140]
[null,null,null,null,null,null,null,null,null,null,null,null,null,null,null,null,141]
[null,null,null,null,null,null,null,null,null,null,null,null,null,null,null,null,142]
[null,null,null,null,null,null,null,null,null,null,null,null,null,null,null,null,143]
[null,null,null,null,null,null,null,null,null,null,null,null,null,null,null,null,144]
[null,null,null,null,null,null,null,null,null,null,null,null,null,null,null,null,145]
[null,null,null,null,null,null,null,null,null,null,null,null,null,null,null,null,146]
[null,null,null,null,null,null,null,null,null,null,null,null,null,null,null,null,147]
[null,null,null,null,null,null,null,null,null,null,null,null,null,null,null,null,148]
[null,null,null,null,null,null,null,null,null,null,null,null,null,null,null,null,149]
[null,null,null,null,null,null,null,null,null,null,null,null,null,null,null,null,150]
[null,null,null,null,null,null,null,null,null,null,null,null,null,null,null,null,151]
[null,null,null,null,null,null,null,null,null,null,null,null,null,null,null,null,152]
[null,null,null,null,null,null,null,null,null,null,null,null,null,null,null,null,153]
[null,null,null,null,null,null,null,null,null,null,null,null,null,null,null,null,154]
[null,null,null,null,null,null,null,null,null,null,null,null,null,null,null,null,155]
[null,null,null,null,null,null,null,null,null,null,null,null,null,null,null,null,156]
[null,null,null,null,null,null,null,null,null,null,null,null,null,null,null,null,157]
[null,null,null,null,null,null,null,null,null,null,null,null,null,null,null,null,158]
[null,null,null,null,null,null,null,null,null,null,null,null,null,null,null,null,159]
[null,null,null,null,null,null,null,null,null,null,null,null,null,null,null,null,160]
[null,null,null,null,null,null,null,null,null,null,null,null,null,null,null,null,161]
[null,null,null,null,null,null,null,null,null,null,null,null,null,null,null,null,162]
[null,null,null,null,null,null,null,null,null,null,null,null,null,null,null,null,163]
[null,null,null,null,null,null,null,null,null,null,null,null,null,null,null,null,164]
[null,null,null,null,null,null,null,null,null,null,null,null,null,null,null,null,165]
[null,null,null,null,null,null,null,null,null,null,null,null,null,null,null,null,166]
[null,null,null,null,null,null,null,null,null,null,null,null,null,null,null,null,167]
[null,null,null,null,null,null,null,null,null,null,null,null,null,null,null,null,168]
[null,null,null,null,null,null,null,null,null,null,null,null,null,null,null,null,169]
[null,null,null,null,null,null,null,null,null,null,null,null,null,null,null,null,170]
[null,null,null,null,null,null,null,null,null,null,null,null,null,null,null,null,171]
[null,null,null,null,null,null,null,null,null,null,null,null,null,null,null,null,172]
[null,null,null,null,null,null,null,null,null,null,null,null,null,null,null,null,173]
[null,null,null,null,null,null,null,null,null,null,null,null,null,null,null,null,174]
[null,null,null,null,null,null,null,null,null,null,null,null,null,null,null,null,175]
[null,null,null,null,null,null,null,null,null,null,null,null,null,null,null,null,176]
[null,null,null,null,null,null,null,null,null,null,null,null,null,null,null,null,177]
[null,null,null,null,null,null,null,null,null,null,null,null,null,null,null,null,178]
[null,null,null,null,null,null,null,null,null,null,null,null,null,null,null,null,179]
[null,null,null,null,null,null,null,null,null,null,null,null,null,null,null,null,180]
[null,null,null,null,null,null,null,null,null,null,null,null,null,null,null,null,181]
[null,null,null,null,null,null,null,null,null,null,null,null,null,null,null,null,182]
[null,null,null,null,null,null,null,null,null,null,null,null,null,null,null,null,183]
[null,null,null,null,null,null,null,null,null,null,null,null,null,null,null,null,184]
[null,null,null,null,null,null,null,null,null,null,null,null,null,null,null,null,185]
[null,null,null,null,null,null,null,null,null,null,null,null,null,null,null,null,186]
[null,null,null,null,null,null,null,null,null,null,null,null,null,null,null,null,187]
[null,null,null,null,null,null,null,null,null,null,null,null,null,null,null,null,188]
[null,null,null,null,null,null,null,null,null,null,null,null,null,null,null,null,189]
[null,null,null,null,null,null,null,null,null,null,null,null,null,null,null,null,190]
[null,null,null,null,null,null,null,null,null,null,null,null,null,null,null,null,191]
[null,null,null,null,null,null,null,null,null,null,null,null,null,null,null,null,192]
[null,null,null,null,null,null,null,null,null,null,null,null,null,null,null,null,193]
[null,null,null,null,null,null,null,null,null,null,null,null,null,null,null,null,194]
[null,null,null,null,null,null,null,null,null,null,null,null,null,null,null,null,195]
[null,null,null,null,null,null,null,null,null,null,null,null,null,null,null,null,196]
[null,null,null,null,null,null,null,null,null,null,null,null,null,null,null,null,197]
[null,null,null,null,null,null,null,null,null,null,null,null,null,null,null,null,198]
[null,null,null,null,null,null,null,null,null,null,null,null,null,null,null,null,199]
[null,null,null,null,null,null,null,null,null,null,null,null,null,null,null,null,200]
[null,null,null,null,null,null,null,null,null,null,null,null,null,null,null,null,201]
[null,null,null,null,null,null,null,null,null,null,null,null,null,null,null,null,202]
[null,null,null,null,null,null,null,null,null,null,null,null,null,null,null,null,203]
[null,null,null,null,null,null,null,null,null,null,null,null,null,null,null,null,204]
[null,null,null,null,null,null,null,null,null,null,null,null,null,null,null,null,205]
[null,null,null,null,null,null,null,null,null,null,null,null,null,null,null,null,206]
[null,null,null,null,null,null,null,null,null,null,null,null,null,null,null,null,207]
[null,null,null,null,null,null,null,null,null,null,null,null,null,null,null,null,208]
[null,null,null,null,null,null,null,null,null,null,null,null,null,null,null,null,209]
[null,null,null,null,null,null,null,null,null,null,null,null,null,null,null,null,210]
[null,null,null,null,null,null,null,null,null,null,null,null,null,null,null,null,211]
[null,null,null,null,null,null,null,null,null,null,null,null,null,null,null,null,212]
[null,null,null,null,null,null,null,null,null,null,null,null,null,null,null,null,213]
[null,null,null,null,null,null,null,null,null,null,null,null,null,null,null,null,214]
[null,null,null,null,null,null,null,null,null,null,null,null,null,null,null,null,215]
[null,null,null,null,null,null,null,null,null,null,null,null,null,null,null,null,216]
[null,null,null,null,null,null,null,null,null,null,null,null,null,null,null,null,217]
[null,null,null,null,null,null,null,null,null,null,null,null,null,null,null,null,218]
[null,null,null,null,null,null,null,null,null,null,null,null,null,null,null,null,219]
[null,null,null,null,null,null,null,null,null,null,null,null,null,null,null,null,220]
[null,null,null,null,null,null,null,null,null,null,null,null,null,null,null,null,221]
[null,null,null,null,null,null,null,null,null,null,null,null,null,null,null,null,222]
[null,null,null,null,null,null,null,null,null,null,null,null,null,null,null,null,223]
[null,null,null,null,null,null,null,null,null,null,null,null,null,null,null,null,224]
[null,null,null,null,null,null,null,null,null,null,null,null,null,null,null,null,225]
[null,null,null,null,null,null,null,null,null,null,null,null,null,null,null,null,226]
[null,null,null,null,null,null,null,null,null,null,null,null,null,null,null,null,227]
[null,null,null,null,null,null,null,null,null,null,null,null,null,null,null,null,228]
[null,null,null,null,null,null,null,null,null,null,null,null,null,null,null,null,229]
[null,null,null,null,null,null,null,null,null,null,null,null,null,null,null,null,230]
[null,null,null,null,null,null,null,null,null,null,null,null,null,null,null,null,231]
[null,null,null,null,null,null,null,null,null,null,null,null,null,null,null,null,232]
[null,null,null,null,null,null,null,null,null,null,null,null,null,null,null,null,233]
[null,null,null,null,null,null,null,null,null,null,null,null,null,null,null,null,234]
[null,null,null,null,null,null,null,null,null,null,null,null,null,null,null,null,235]
[null,null,null,null,null,null,null,null,null,null,null,null,null,null,null,null,236]
[null,null,null,null,null,null,null,null,null,null,null,null,null,null,null,null,237]
[null,null,null,null,null,null,null,null,null,null,null,null,null,null,null,null,238]
[null,null,null,null,null,null,null,null,null,null,null,null,null,null,null,null,239]
[null,null,null,null,null,null,null,null,null,null,null,null,null,null,null,null,240]
[null,null,null,null,null,null,null,null,null,null,null,null,null,null,null,null,241]
[null,null,null,null,null,null,null,null,null,null,null,null,null,null,null,null,242]
[null,null,null,null,null,null,null,null,null,null,null,null,null,null,null,null,243]
[null,null,null,null,null,null,null,null,null,null,null,null,null,null,null,null,244]
[null,null,null,null,null,null,null,null,null,null,null,null,null,null,null,null,245]
[null,null,null,null,null,null,null,null,null,null,null,null,null,null,null,null,246]
[null,null,null,null,null,null,null,null,null,null,null,null,null,null,null,null,247]
[null,null,null,null,null,null,null,null,null,null,null,null,null,null,null,null,248]
[null,null,null,null,null,null,null,null,null,null,null,null,null,null,null,null,249]
[null,null,null,null,null,null,null,null,null,null,null,null,null,null,null,null,250]
[null,null,null,null,null,null,null,null,null,null,null,null,null,null,null,null,251]
[null,null,null,null,null,null,null,null,null,null,null,null,null,null,null,null,252]
[null,null,null,null,null,null,null,null,null,null,null,null,null,null,null,null,253]
[null,null,null,null,null,null,null,null,null,null,null,null,null,null,null,null,254]
[null,null,null,null,null,null,null,null,null,null,null,null,null,null,null,null,255]
[null,null,null,null,null,null,null,null,null,null,null,null,null,null,null,null,256]
[null,null,null,null,null,null,null,null,null,null,null,null,null,null,null,null,257]
[null,null,null,null,null,null,null,null,null,null,null,null,null,null,null,null,258]
[null,null,null,null,null,null,null,null,null,null,null,null,null,null,null,null,259]
[null,null,null,null,null,null,null,null,null,null,null,null,null,null,null,null,260]
[null,null,null,null,null,null,null,null,null,null,null,null,null,null,null,null,261]
[null,null,null,null,null,null,null,null,null,null,null,null,null,null,null,null,262]
[null,null,null,null,null,null,null,null,null,null,null,null,null,null,null,null,263]
[null,null,null,null,null,null,null,null,null,null,null,null,null,null,null,null,264]
[null,null,null,null,null,null,null,null,null,null,null,null,null,null,null,null,265]
[null,null,null,null,null,null,null,null,null,null,null,null,null,null,null,null,266]
[null,null,null,null,null,null,null,null,null,null,null,null,null,null,null,null,267]
[null,null,null,null,null,null,null,null,null,null,null,null,null,null,null,null,268]
[null,null,null,null,null,null,null,null,null,null,null,null,null,null,null,null,269]
[null,null,null,null,null,null,null,null,null,null,null,null,null,null,null,null,270]
[null,null,null,null,null,null,null,null,null,null,null,null,null,null,null,null,271]
[null,null,null,null,null,null,null,null,null,null,null,null,null,null,null,null,272]
[null,null,null,null,null,null,null,null,null,null,null,null,null,null,null,null,273]
[null,null,null,null,null,null,null,null,null,null,null,null,null,null,null,null,274]
[null,null,null,null,null,null,null,null,null,null,null,null,null,null,null,null,275]
[null,null,null,null,null,null,null,null,null,null,null,null,null,null,null,null,276]
[null,null,null,null,null,null,null,null,null,null,null,null,null,null,null,null,277]
[null,null,null,null,null,null,null,null,null,null,null,null,null,null,null,null,278]
[null,null,null,null,null,null,null,null,null,null,null,null,null,null,null,null,279]
[null,null,null,null,null,null,null,null,null,null,null,null,null,null,null,null,280]
[null,null,null,null,null,null,null,null,null,null,null,null,null,null,null,null,281]
[null,null,null,null,null,null,null,null,null,null,null,null,null,null,null,null,282]
[null,null,null,null,null,null,null,null,null,null,null,null,null,null,null,null,283]
[null,null,null,null,null,null,null,null,null,null,null,null,null,null,null,null,284]
[null,null,null,null,null,null,null,null,null,null,null,null,null,null,null,null,285]
[null,null,null,null,null,null,null,null,null,null,null,null,null,null,null,null,286]
[null,null,null,null,null,null,null,null,null,null,null,null,null,null,null,null,287]
[null,null,null,null,null,null,null,null,null,null,null,null,null,null,null,null,288]
[null,null,null,null,null,null,null,null,null,null,null,null,null,null,null,null,289]
[null,null,null,null,null,null,null,null,null,null,null,null,null,null,null,null,290]
[null,null,null,null,null,null,null,null,null,null,null,null,null,null,null,null,291]
[null,null,null,null,null,null,null,null,null,null,null,null,null,null,null,null,292]
[null,null,null,null,null,null,null,null,null,null,null,null,null,null,null,null,293]
[null,null,null,null,null,null,null,null,null,null,null,null,null,null,null,null,294]
[null,null,null,null,null,null,null,null,null,null,null,null,null,null,null,null,295]
[null,null,null,null,null,null,null,null,null,null,null,null,null,null,null,null,296]
[null,null,null,null,null,null,null,null,null,null,null,null,null,null,null,null,297]
[null,null,null,null,null,null,null,null,null,null,null,null,null,null,null,null,298]
[null,null,null,null,null,null,null,null,null,null,null,null,null,null,null,null,299]
[null,null,null,null,null,null,null,null,null,null,null,null,null,null,null,null,300]
[null,null,null,null,null,null,null,null,null,null,null,null,null,null,null,null,301]

{"sheet":"Velocity Profile 2a","index":3,"n_rows":10,"n_cols":33,"rows_kept":10,"cut":false,"hidden":false,"merged":[[8,23,8,24],[1,1,1,9],[3,1,3,8],[4,2,4,6],[4,7,4,8],[5,7,5,8],[7,1,7,32],[8,11,8,12],[8,1,8,2],[8,3,8,4],[8,5,8,6],[8,7,8,8],[8,9,8,10],[8,25,8,26],[8,27,8,28],[8,29,8,30],[8,31,8,32],[8,13,8,14],[8,15,8,16],[8,17,8,18],[8,19,8,20],[8,21,8,22]]}
[]
[null,"Velocity Profiles"]
[]
[null,"Required input:"]
[null,"1)","Normalized velocity magnitude profiles",null,null,null,null,"mandatory"]
[null,null,"Distance referes to starting point of the individual profiles (s. note)"]
[]
[null,{"$f":"'META Data'!E17","v":"ID__"}]
[null,"L1",null,"R1",null,"R2",null,"R3",null,"U1",null,"U2",null,"U3",null,"U4",null,"U5",null,"U6",null,"V1",null,"V2",null,"V3",null,"V4",null,"V5",null,"V6"]
[null,"Vmag/V∞ [-]","Distance [m]","Vmag/V∞ [-]","Distance [m]","Vmag/V∞ [-]","Distance [m]","Vmag/V∞ [-]","Distance [m]","Vmag/V∞ [-]","Distance [m]","Vmag/V∞ [-]","Distance [m]","Vmag/V∞ [-]","Distance [m]","Vmag/V∞ [-]","Distance [m]","Vmag/V∞ [-]","Distance [m]","Vmag/V∞ [-]","Distance [m]","Vmag/V∞ [-]","Distance [m]","Vmag/V∞ [-]","Distance [m]","Vmag/V∞ [-]","Distance [m]","Vmag/V∞ [-]","Distance [m]","Vmag/V∞ [-]","Distance [m]","Vmag/V∞ [-]","Distance [m]"]

{"sheet":"Surface Data 2a","index":4,"n_rows":218,"n_cols":11,"rows_kept":218,"cut":false,"hidden":false,"merged":[[1,1,1,10],[3,1,3,9],[4,2,4,8],[5,2,5,8],[184,1,217,1],[184,2,217,2],[184,3,217,3],[184,10,217,10],[158,1,183,1],[158,2,183,2],[158,3,183,3],[158,10,183,10],[144,1,157,1],[144,2,157,2],[144,3,157,3],[144,10,157,10],[128,1,133,1],[128,2,133,2],[128,3,133,3],[128,10,133,10],[134,1,143,1],[134,2,143,2],[134,3,143,3],[134,10,143,10],[105,1,116,1],[105,2,116,2],[105,3,116,3],[105,10,116,10],[117,1,127,1],[117,2,127,2],[117,3,127,3],[117,10,127,10],[74,1,101,1],[74,2,101,2],[74,3,101,3],[74,10,101,10],[102,1,104,1],[102,2,104,2],[102,3,104,3],[102,10,104,10],[52,1,62,1],[52,2,62,2],[52,3,62,3],[52,10,62,10],[63,1,73,1],[63,2,73,2],[63,3,73,3],[63,10,73,10],[9,10,31,10],[32,1,51,1],[32,2,51,2],[32,3,51,3],[32,10,51,10],[7,3,7,4],[9,1,31,1],[9,2,31,2],[9,3,31,3],[7,5,7,9]]}
[]
[null,"Surface Pressure"]
[]
[null,"Required input:"]
[null,"1)","Time averaged static pressure coefficient Cp at all pressure probe locations",null,null,null,null,null,null,"mandatory"]
[null,"2)","Time averaged upperbody skin centerline friction coefficient magnitude (Cf) at marked locations",null,null,null,null,null,null,"mandatory"]
[]
[null,null,null,"Simulation title:",null,{"$f":"'META Data'!E17","v":"ID__"}]
[null,null,"ANSA PID","# of Probes","Probe \n# ","X [mm]","Y [mm]","Z [mm]","Cp [-]","Cf [-]","Picture"]
[null,"Upperbody Centerline (TUM)","600 - PROBES - TUM Main body centerline",23,1,-798.25,0,150]
[null,null,null,null,2,-700,0,406.35]
[null,null,null,null,3,-600,0,462.63]
[null,null,null,null,4,-500,0,499.45]
[null,null,null,null,5,-400,0,527.70000000000005]
[null,null,null,null,6,-300,0,550.85]
[null,null,null,null,7,-100,0,587.73]
[null,null,null,null,8,0,0,603.04999999999995]
[null,null,null,null,9,100,0,616.9]
[null,null,null,null,10,300,0,640.83000000000004]
[null,null,null,null,11,350,0,645.92999999999995]
[null,null,null,null,12,413.1,0,625]
[null,null,null,null,13,464.13,0,625]
[null,null,null,null,14,543.17999999999995,0,675]
[null,null,null,null,15,624.25,0,725]
[null,null,null,null,16,707.88,0,775]
[null,null,null,null,17,885.33,0,875]
[null,null,null,null,18,1084.9000000000001,0,975]
[null,null,null,null,19,1199,0,1025]
[null,null,null,null,20,1300,0,1051.5]
[null,null,null,null,21,3752.7,0,450]
[null,null,null,null,22,3757.9,0,350]
[null,null,null,null,23,3804.1,0,250]
[null,"Sidewall z = 150mm (TUM)","601 - PROBES - TUM Main body z-plane 150mm",20,24,-793.1,-200,150]
[null,null,null,null,25,-758.35,-400,150]
[null,null,null,null,26,-671.63,-600,150]
[null,null,null,null,27,-526.25,-800,150]
[null,null,null,null,28,500,-880.55,150]
[null,null,null,null,29,700,-883.25,150]
[null,null,null,null,30,900,-889.2,150]
[null,null,null,null,31,1100,-893.23,150]
[null,null,null,null,32,1300,-895.28,150]
[null,null,null,null,33,1500,-895.4,150]
[null,null,null,null,34,1700,-893.55,150]
[null,null,null,null,35,1900,-889.7,150]
[null,null,null,null,36,2100,-883.78,150]
[null,null,null,null,37,2300,-883.98,150]
[null,null,null,null,38,3300,-830.78,150]
[null,null,null,null,39,3500,-777.73,150]
[null,null,null,null,40,3656.8,-700,150]
[null,null,null,null,41,3712.5,-600,150]
[null,null,null,null,42,3765.4,-400,150]
[null,null,null,null,43,3791.3,-200,150]
[null,"Side Window (TUM)","602 - PROBES - TUM Side Window",11,44,1100,-681.75,875]
[null,null,null,null,45,1300,-630.23,975]
[null,null,null,null,46,1100,-723.63,775]
[null,null,null,null,47,1300,-681.85,875]
[null,null,null,null,48,1100,-761.53,675]
[null,null,null,null,49,1300,-766.35,675]
[null,null,null,null,50,1300,-728.8,775]
[null,null,null,null,51,1500,-769.13,675]
[null,null,null,null,52,1500,-731.85,775]
[null,null,null,null,53,1500,-685.2,875]
[null,null,null,null,54,1500,-628.04999999999995,975]
[null,"Front Window (TUM)","603 - PROBES - TUM Front Window",11,55,553.5,-200,675]
[null,null,null,null,56,718.28,-200,775]
[null,null,null,null,57,895.8,-200,875]
[null,null,null,null,58,1095.9000000000001,-200,975]
[null,null,null,null,59,589.20000000000005,-400,675]
[null,null,null,null,60,754.38,-400,775]
[null,null,null,null,61,932.43,-400,875]
[null,null,null,null,62,1134.9000000000001,-400,975]
[null,null,null,null,63,661.1,-600,675]
[null,null,null,null,64,827.65,-600,775]
[null,null,null,null,65,1007.9,-600,875]
[null,"Notchback (TUM)","604 - PROBES - TUM Notchback",28,107,1900,0,1102.4000000000001]
[null,null,null,null,108,2100,0,1100.28]
[null,null,null,null,109,2300,0,1090.3]
[null,null,null,null,110,2500,0,1067.1500000000001]
[null,null,null,null,111,2600,0,1047.75]
[null,null,null,null,112,2700,0,1017.73]
[null,null,null,null,113,2820.15,0,975]
[null,null,null,null,114,2944.43,0,925]
[null,null,null,null,115,3057.9,0,875]
[null,null,null,null,116,3164.15,0,825]
[null,null,null,null,117,3265.23,0,775]
[null,null,null,null,118,3300,0,757.33]
[null,null,null,null,119,3400,0,746.1]
[null,null,null,null,120,3500,0,735.35]
[null,null,null,null,121,3575.25,0,725]
[null,null,null,null,122,3700,0,717.45]
[null,null,null,null,123,3709.73,0,650]
[null,null,null,null,124,3715.28,0,600]
[null,null,null,null,125,2803.68,-200,975]
[null,null,null,null,126,3042.9,-200,875]
[null,null,null,null,127,3251.25,-200,775]
[null,null,null,null,128,3500,-200,731.48]
[null,null,null,null,129,2743.55,-400,975]
[null,null,null,null,130,2989.1,-400,875]
[null,null,null,null,131,3200.9,-400,775]
[null,null,null,null,132,3500,-400,721.2]
[null,null,null,null,133,2619.5,-600,975]
[null,null,null,null,134,2778.4,-600,925]
[null,"Mainbody Centerline (Ford)","610 - PROBES - Ford Main body centerline",3,191,-804.8,0,-103]
[null,null,null,null,193,3799.3,0,150]
[null,null,null,null,195,-724.8,0,384.1]
[null,"Sidewall z = 150mm (Ford)","611 - PROBES - Ford Main body z-plane 150mm",12,196,-453,-843.4,150]
[null,null,null,null,197,375,-887.8,150]
[null,null,null,null,198,3588,-748,150]
[null,null,null,null,199,3300,830.8,150]
[null,null,null,null,200,3500,777.7,150]
[null,null,null,null,201,3656.8,700,150]
[null,null,null,null,202,-592,-730.5,150]
[null,null,null,null,203,-394,-859.9,150]
[null,null,null,null,204,2400,-888.9,150]
[null,null,null,null,205,3208,-855.5,150]
[null,null,null,null,206,3588,748,150]
[null,null,null,null,207,3765,400,150]
[null,"Side Window (Ford)","612 - PROBES - Ford Side Window",11,208,1020,-759,675]
[null,null,null,null,209,1020,-741.1,725]
[null,null,null,null,210,1020,-720.9,775]
[null,null,null,null,211,1100,-698.8,830]
[null,null,null,null,212,1200,-676.7,880]
[null,null,null,null,213,1300,-654.5,925]
[null,null,null,null,214,1400,-641.79999999999995,950]
[null,null,null,null,215,1200,-706.5,820]
[null,null,null,null,216,1200,-724.4,780]
[null,null,null,null,217,1400,-681.2,880]
[null,null,null,null,218,1400,-728.5,780]
[null,"A-Pillar (Ford)","613 - PROBES - Ford A-Pillar",6,219,728.2,-733,675]
[null,null,null,null,220,874.3,-701.5,775]
[null,null,null,null,221,1034.3,-664.5,875]
[null,null,null,null,222,1219,-617,975]
[null,null,null,null,223,1018.3,-648.70000000000005,875]
[null,null,null,null,224,1060,-675.8,875]
[null,"Rearend z = 500mm (Ford)","614 - PROBES - Ford Main body z-plane 500mm",10,225,3300,-782.4,500]
[null,null,null,null,226,3425,-762.3,500]
[null,null,null,null,227,3525,-743.3,500]
[null,null,null,null,228,3599.5,-690,500]
[null,null,null,null,229,3646.2,-600,500]
[null,null,null,null,230,3300,782.4,500]
[null,null,null,null,231,3425,762.3,500]
[null,null,null,null,232,3525,743.3,500]
[null,null,null,null,233,3599.5,690,500]
[null,null,null,null,234,3646.2,600,500]
[null,"Notchback (Ford)","615 - PROBES - Ford Notchback",14,259,2930.6,-689.8,775]
[null,null,null,null,260,3008.4,-677.2,775]
[null,null,null,null,261,3085.5,-643.1,775]
[null,null,null,null,262,2753.8,-656.6,875]
[null,null,null,null,263,2831.7,-643.29999999999995,875]
[null,null,null,null,264,2872.8,-625.70000000000005,875]
[null,null,null,null,265,2561.1999999999998,-619.1,963.8]
[null,null,null,null,266,2664.2,-576,975]
[null,null,null,null,267,3099.9,-588.4,775]
[null,null,null,null,268,2897.9,-565.20000000000005,875]
[null,null,null,null,269,2667.9,-529.1,975]
[null,null,null,null,270,3008.4,677.2,775]
[null,null,null,null,271,2831.7,643.29999999999995,875]
[null,null,null,null,272,2619.5,600,975]
[null,"Wheelhouse (Ford)","624 - PROBES - Ford Front Wheelhouse",26,550,-380.29,-750,-115]
[null,null,null,null,551,-343.04,-600,-115]
[null,null,null,null,552,-130,-479,-155]
[null,null,null,null,553,0,-473.4,-155]
[null,null,null,null,554,130,-467.81,-155]
[null,null,null,null,555,334.9,-506.09,-115]
[null,null,null,null,556,384.79,-600,-115]
[null,null,null,null,557,406,-750,-115]
[null,null,null,null,558,-377.67,-750,43.15]
[null,null,null,null,559,-356.53,-750,199]
[null,null,null,null,560,-272.73,-750,331.81]
[null,null,null,null,561,-143.05000000000001,-750,420.67]
[null,null,null,null,562,10.68,-750,452.54]
[null,null,null,null,563,164.46,-750,420.88]
[null,null,null,null,564,293.38,-750,330.82]
[null,null,null,null,565,378.34,-750,198.6]
[null,null,null,null,566,401.96,-750,43.11]
[null,null,null,null,567,-339.45,-600,30.23]
[null,null,null,null,568,-318.19,-600,173.58]
[null,null,null,null,569,-245.15,-600,298.08]
[null,null,null,null,570,-127.79,-600,381.66]
[null,null,null,null,571,13.6,-600,409.76]
[null,null,null,null,572,154.19,-600,378.11]
[null,null,null,null,573,270.12,-600,291.95]
[null,null,null,null,574,351.02,-600,171.73]
[null,null,null,null,575,379.08,-600,30.12]
[null,"Detailed Underbody Open Cooling (Ford)","625 - PROBES - Ford OCDA Detailed Underbody",34,600,-762.5,0,-111.2]
[null,null,null,null,601,-729.72,0,-115]
[null,null,null,null,602,-697,0,-118.78]
[null,null,null,null,603,-600,0,-130]
[null,null,null,null,604,-400,0,-153.125]
[null,null,null,null,605,-200,0,-165.55]
[null,null,null,null,606,0,0,-170.72499999999999]
[null,null,null,null,607,200,0,-170.47499999999999]
[null,null,null,null,608,580,0,211.4]
[null,null,null,null,609,900,0,154.80000000000001]
[null,null,null,null,610,1100,0,109.15]
[null,null,null,null,611,1500,0,85.27]
[null,null,null,null,612,1700,0,76.430000000000007]
[null,null,null,null,613,1900,0,67]
[null,null,null,null,614,2500,0,-82.77]
[null,null,null,null,615,2700,0,-123.43]
[null,null,null,null,616,2900,0,-118.44]
[null,null,null,null,617,3100,0,-104.17]
[null,null,null,null,618,3300,0,-89.08]
[null,null,null,null,619,3500,0,-68.5]
[null,null,null,null,620,3700,0,-31.07]
[null,null,null,null,621,540,-339.3,-120]
[null,null,null,null,622,750,-328.45,-120]
[null,null,null,null,623,1100,-590,-155.66]
[null,null,null,null,624,1500,-360,-150.12]
[null,null,null,null,625,400,-550,-159.6]
[null,null,null,null,626,500,-700,-159.69999999999999]
[null,null,null,null,627,540,-590,-164.6]
[null,null,null,null,628,750,-590,-160.05000000000001]
[null,null,null,null,629,1100,-360,-155.66]
[null,null,null,null,630,1500,-590,-150.12]
[null,null,null,null,631,2403.6999999999998,-740,-97.1]
[null,null,null,null,632,2793.2,-740,461.5]
[null,null,null,null,633,3172.9,-740,185.2]

{"sheet":"Aero Forces 2b","index":5,"n_rows":204,"n_cols":20,"rows_kept":204,"cut":false,"hidden":false,"merged":[[39,2,67,9],[27,3,27,7],[33,2,33,7],[34,2,34,7],[35,2,35,7],[38,2,38,9],[22,2,22,7],[23,2,23,7],[24,3,24,7],[25,3,25,7],[26,3,26,7],[9,7,11,7],[17,2,17,7],[19,2,19,7],[20,2,20,7],[21,2,21,7],[9,2,11,2],[9,3,11,3],[9,4,11,4],[9,5,11,5],[9,6,11,6],[7,3,7,7],[1,2,1,10],[1,11,1,14],[1,16,1,19],[3,2,3,9],[4,3,4,7],[4,8,4,9],[5,3,5,7],[5,8,5,9]]}
[]
[null,null,"Aerodynamics Forces",null,null,null,null,null,null,null,null,"Simulation Stabilization/Convergence\n(Time history)",null,null,null,null,"Aerodynamic Force Development Plots"]
[null,null,null,null,null,null,null,null,null,null,null,"Time [s]","CD [-]","CL [-]","CS [-]",null,null,"x [mm]","CD [-]","CL [-]"]
[null,null,"Required input:",null,null,null,null,null,null,null,null,null,null,null,null,null,1]
[null,null,"1)","Aerodynamic forces (CD; CL; CLf; CLr; Cs)",null,null,null,null,"mandatory",null,null,null,null,null,null,null,2]
[null,null,"2)","Aerodynamic force development (CD; CL)",null,null,null,null,"recommended",null,null,null,null,null,null,null,3]
[null,null,null,null,null,null,null,null,null,null,null,null,null,null,null,null,4]
[null,null,"Simulation title:",{"$f":"'META Data'!F17","v":"ID__"},null,null,null,null,null,null,null,null,null,null,null,null,5]
[null,null,"Aero Force Coeff:","CD","CL","CLf","CLr","CS",null,null,null,null,null,null,null,null,6]
[null,null,"AVERAGE\n - based on participant best practice\n - will be used for aero force reporting",null,null,null,null,null,null,null,null,null,null,null,null,null,7]
[null,null,null,null,null,null,null,null,null,null,null,null,null,null,null,null,8]
[null,null,null,null,null,null,null,null,null,null,null,null,null,null,null,null,9]
[null,null,null,null,null,null,null,null,null,null,null,null,null,null,null,null,10]
[null,null,null,null,null,null,null,null,null,null,null,null,null,null,null,null,11]
[null,null,"Standardized Meancalc based evaluation of aero dynamic force time traces",null,null,null,null,null,null,null,null,null,null,null,null,null,12]
[null,null,"    - Meancalc output will not be used for aero force reporting and comparison!",null,null,null,null,null,null,null,null,null,null,null,null,null,13]
[null,null,"    - Meancalc output will be used for result quality checking and statistical error reporting",null,null,null,null,null,null,null,null,null,null,null,null,null,14]
[null,null,"    - Access Meancalc via: ",null,null,null,null,null,null,null,null,null,null,null,null,null,15]
[null,null,"           https://meancalc.app.upstream-cfd.com",null,null,null,null,null,null,null,null,null,null,null,null,null,16]
[null,null,"    - Define start point of averaging period (timestep)",null,null,null,null,null,null,null,null,null,null,null,null,null,17]
[null,null,"        Chosen timestep should match the timestep selected to calculate the aero force averages (D10 - H10)",null,null,null,null,null,null,null,null,null,null,null,null,null,18]
[null,null,"    - Deactivate \"Automatic transient detection\"",null,null,null,null,null,null,null,null,null,null,null,null,null,19]
[null,null,"    - Run Meancalc for each of the aerodynamic forces (CD, CL, CS)",null,null,null,null,null,null,null,null,null,null,null,null,null,20]
[null,null,"    - Capture Meancalc output in table below",null,null,null,null,null,null,null,null,null,null,null,null,null,21]
[null,null,"Averaging start time [sec]",null,null,null,null,null,null,null,null,null,null,null,null,null,22]
[null,null,"Averaging start time [timestep]",null,null,null,null,null,null,null,null,null,null,null,null,null,23]
[null,null,"Averaging end time [sec]",null,null,null,null,null,null,null,null,null,null,null,null,null,24]
[null,null,"Length of averaging interval [sec]",{"$f":"D27-D25","v":0},null,null,null,null,null,null,null,null,null,null,null,null,25]
[null,null,"Mean value m",null,null,null,null,null,null,null,null,null,null,null,null,null,26]
[null,null,"Error Mean Value s(m)",null,null,null,null,null,null,null,null,null,null,null,null,null,27]
[null,null,"Standard deviation s",null,null,null,null,null,null,null,null,null,null,null,null,null,28]
[null,null,"Error Standard Deviation s(s)",{"$f":"D30/SQRT(2)","v":0},{"$f":"E30/SQRT(2)","v":0},null,null,{"$f":"H30/SQRT(2)","v":0},null,null,null,null,null,null,null,null,29]
[null,null,null,null,null,null,null,null,null,null,null,null,null,null,null,null,30]
[null,null,"    - Activate \"Automatic transient detection\"",null,null,null,null,null,null,null,null,null,null,null,null,null,31]
[null,null,"    - Rerun Meancalc for each of the aerodynamic forces (CD, CL, CS)",null,null,null,null,null,null,null,null,null,null,null,null,null,32]
[null,null,"    - Capture Meancalc recommended averaging start timestep (nskip) in table below",null,null,null,null,null,null,null,null,null,null,null,null,null,33]
[null,null,"Averaging start timestep [nskip]",null,null,null,null,null,null,null,null,null,null,null,null,null,34]
[null,null,null,null,null,null,null,null,null,null,null,null,null,null,null,null,35]
[null,null,"Input picture of Meancalc anaylsis of aerodynamic drag CD time trace",null,null,null,null,null,null,null,null,null,null,null,null,null,36]
[null,null,null,null,null,null,null,null,null,null,null,null,null,null,null,null,37]
[null,null,null,null,null,null,null,null,null,null,null,null,null,null,null,null,38]
[null,null,null,null,null,null,null,null,null,null,null,null,null,null,null,null,39]
[null,null,null,null,null,null,null,null,null,null,null,null,null,null,null,null,40]
[null,null,null,null,null,null,null,null,null,null,null,null,null,null,null,null,41]
[null,null,null,null,null,null,null,null,null,null,null,null,null,null,null,null,42]
[null,null,null,null,null,null,null,null,null,null,null,null,null,null,null,null,43]
[null,null,null,null,null,null,null,null,null,null,null,null,null,null,null,null,44]
[null,null,null,null,null,null,null,null,null,null,null,null,null,null,null,null,45]
[null,null,null,null,null,null,null,null,null,null,null,null,null,null,null,null,46]
[null,null,null,null,null,null,null,null,null,null,null,null,null,null,null,null,47]
[null,null,null,null,null,null,null,null,null,null,null,null,null,null,null,null,48]
[null,null,null,null,null,null,null,null,null,null,null,null,null,null,null,null,49]
[null,null,null,null,null,null,null,null,null,null,null,null,null,null,null,null,50]
[null,null,null,null,null,null,null,null,null,null,null,null,null,null,null,null,51]
[null,null,null,null,null,null,null,null,null,null,null,null,null,null,null,null,52]
[null,null,null,null,null,null,null,null,null,null,null,null,null,null,null,null,53]
[null,null,null,null,null,null,null,null,null,null,null,null,null,null,null,null,54]
[null,null,null,null,null,null,null,null,null,null,null,null,null,null,null,null,55]
[null,null,null,null,null,null,null,null,null,null,null,null,null,null,null,null,56]
[null,null,null,null,null,null,null,null,null,null,null,null,null,null,null,null,57]
[null,null,null,null,null,null,null,null,null,null,null,null,null,null,null,null,58]
[null,null,null,null,null,null,null,null,null,null,null,null,null,null,null,null,59]
[null,null,null,null,null,null,null,null,null,null,null,null,null,null,null,null,60]
[null,null,null,null,null,null,null,null,null,null,null,null,null,null,null,null,61]
[null,null,null,null,null,null,null,null,null,null,null,null,null,null,null,null,62]
[null,null,null,null,null,null,null,null,null,null,null,null,null,null,null,null,63]
[null,null,null,null,null,null,null,null,null,null,null,null,null,null,null,null,64]
[null,null,null,null,null,null,null,null,null,null,null,null,null,null,null,null,65]
[null,null,null,null,null,null,null,null,null,null,null,null,null,null,null,null,66]
[null,null,null,null,null,null,null,null,null,null,null,null,null,null,null,null,67]
[null,null,null,null,null,null,null,null,null,null,null,null,null,null,null,null,68]
[null,null,null,null,null,null,null,null,null,null,null,null,null,null,null,null,69]
[null,null,null,null,null,null,null,null,null,null,null,null,null,null,null,null,70]
[null,null,null,null,null,null,null,null,null,null,null,null,null,null,null,null,71]
[null,null,null,null,null,null,null,null,null,null,null,null,null,null,null,null,72]
[null,null,null,null,null,null,null,null,null,null,null,null,null,null,null,null,73]
[null,null,null,null,null,null,null,null,null,null,null,null,null,null,null,null,74]
[null,null,null,null,null,null,null,null,null,null,null,null,null,null,null,null,75]
[null,null,null,null,null,null,null,null,null,null,null,null,null,null,null,null,76]
[null,null,null,null,null,null,null,null,null,null,null,null,null,null,null,null,77]
[null,null,null,null,null,null,null,null,null,null,null,null,null,null,null,null,78]
[null,null,null,null,null,null,null,null,null,null,null,null,null,null,null,null,79]
[null,null,null,null,null,null,null,null,null,null,null,null,null,null,null,null,80]
[null,null,null,null,null,null,null,null,null,null,null,null,null,null,null,null,81]
[null,null,null,null,null,null,null,null,null,null,null,null,null,null,null,null,82]
[null,null,null,null,null,null,null,null,null,null,null,null,null,null,null,null,83]
[null,null,null,null,null,null,null,null,null,null,null,null,null,null,null,null,84]
[null,null,null,null,null,null,null,null,null,null,null,null,null,null,null,null,85]
[null,null,null,null,null,null,null,null,null,null,null,null,null,null,null,null,86]
[null,null,null,null,null,null,null,null,null,null,null,null,null,null,null,null,87]
[null,null,null,null,null,null,null,null,null,null,null,null,null,null,null,null,88]
[null,null,null,null,null,null,null,null,null,null,null,null,null,null,null,null,89]
[null,null,null,null,null,null,null,null,null,null,null,null,null,null,null,null,90]
[null,null,null,null,null,null,null,null,null,null,null,null,null,null,null,null,91]
[null,null,null,null,null,null,null,null,null,null,null,null,null,null,null,null,92]
[null,null,null,null,null,null,null,null,null,null,null,null,null,null,null,null,93]
[null,null,null,null,null,null,null,null,null,null,null,null,null,null,null,null,94]
[null,null,null,null,null,null,null,null,null,null,null,null,null,null,null,null,95]
[null,null,null,null,null,null,null,null,null,null,null,null,null,null,null,null,96]
[null,null,null,null,null,null,null,null,null,null,null,null,null,null,null,null,97]
[null,null,null,null,null,null,null,null,null,null,null,null,null,null,null,null,98]
[null,null,null,null,null,null,null,null,null,null,null,null,null,null,null,null,99]
[null,null,null,null,null,null,null,null,null,null,null,null,null,null,null,null,100]
[null,null,null,null,null,null,null,null,null,null,null,null,null,null,null,null,101]
[null,null,null,null,null,null,null,null,null,null,null,null,null,null,null,null,102]
[null,null,null,null,null,null,null,null,null,null,null,null,null,null,null,null,103]
[null,null,null,null,null,null,null,null,null,null,null,null,null,null,null,null,104]
[null,null,null,null,null,null,null,null,null,null,null,null,null,null,null,null,105]
[null,null,null,null,null,null,null,null,null,null,null,null,null,null,null,null,106]
[null,null,null,null,null,null,null,null,null,null,null,null,null,null,null,null,107]
[null,null,null,null,null,null,null,null,null,null,null,null,null,null,null,null,108]
[null,null,null,null,null,null,null,null,null,null,null,null,null,null,null,null,109]
[null,null,null,null,null,null,null,null,null,null,null,null,null,null,null,null,110]
[null,null,null,null,null,null,null,null,null,null,null,null,null,null,null,null,111]
[null,null,null,null,null,null,null,null,null,null,null,null,null,null,null,null,112]
[null,null,null,null,null,null,null,null,null,null,null,null,null,null,null,null,113]
[null,null,null,null,null,null,null,null,null,null,null,null,null,null,null,null,114]
[null,null,null,null,null,null,null,null,null,null,null,null,null,null,null,null,115]
[null,null,null,null,null,null,null,null,null,null,null,null,null,null,null,null,116]
[null,null,null,null,null,null,null,null,null,null,null,null,null,null,null,null,117]
[null,null,null,null,null,null,null,null,null,null,null,null,null,null,null,null,118]
[null,null,null,null,null,null,null,null,null,null,null,null,null,null,null,null,119]
[null,null,null,null,null,null,null,null,null,null,null,null,null,null,null,null,120]
[null,null,null,null,null,null,null,null,null,null,null,null,null,null,null,null,121]
[null,null,null,null,null,null,null,null,null,null,null,null,null,null,null,null,122]
[null,null,null,null,null,null,null,null,null,null,null,null,null,null,null,null,123]
[null,null,null,null,null,null,null,null,null,null,null,null,null,null,null,null,124]
[null,null,null,null,null,null,null,null,null,null,null,null,null,null,null,null,125]
[null,null,null,null,null,null,null,null,null,null,null,null,null,null,null,null,126]
[null,null,null,null,null,null,null,null,null,null,null,null,null,null,null,null,127]
[null,null,null,null,null,null,null,null,null,null,null,null,null,null,null,null,128]
[null,null,null,null,null,null,null,null,null,null,null,null,null,null,null,null,129]
[null,null,null,null,null,null,null,null,null,null,null,null,null,null,null,null,130]
[null,null,null,null,null,null,null,null,null,null,null,null,null,null,null,null,131]
[null,null,null,null,null,null,null,null,null,null,null,null,null,null,null,null,132]
[null,null,null,null,null,null,null,null,null,null,null,null,null,null,null,null,133]
[null,null,null,null,null,null,null,null,null,null,null,null,null,null,null,null,134]
[null,null,null,null,null,null,null,null,null,null,null,null,null,null,null,null,135]
[null,null,null,null,null,null,null,null,null,null,null,null,null,null,null,null,136]
[null,null,null,null,null,null,null,null,null,null,null,null,null,null,null,null,137]
[null,null,null,null,null,null,null,null,null,null,null,null,null,null,null,null,138]
[null,null,null,null,null,null,null,null,null,null,null,null,null,null,null,null,139]
[null,null,null,null,null,null,null,null,null,null,null,null,null,null,null,null,140]
[null,null,null,null,null,null,null,null,null,null,null,null,null,null,null,null,141]
[null,null,null,null,null,null,null,null,null,null,null,null,null,null,null,null,142]
[null,null,null,null,null,null,null,null,null,null,null,null,null,null,null,null,143]
[null,null,null,null,null,null,null,null,null,null,null,null,null,null,null,null,144]
[null,null,null,null,null,null,null,null,null,null,null,null,null,null,null,null,145]
[null,null,null,null,null,null,null,null,null,null,null,null,null,null,null,null,146]
[null,null,null,null,null,null,null,null,null,null,null,null,null,null,null,null,147]
[null,null,null,null,null,null,null,null,null,null,null,null,null,null,null,null,148]
[null,null,null,null,null,null,null,null,null,null,null,null,null,null,null,null,149]
[null,null,null,null,null,null,null,null,null,null,null,null,null,null,null,null,150]
[null,null,null,null,null,null,null,null,null,null,null,null,null,null,null,null,151]
[null,null,null,null,null,null,null,null,null,null,null,null,null,null,null,null,152]
[null,null,null,null,null,null,null,null,null,null,null,null,null,null,null,null,153]
[null,null,null,null,null,null,null,null,null,null,null,null,null,null,null,null,154]
[null,null,null,null,null,null,null,null,null,null,null,null,null,null,null,null,155]
[null,null,null,null,null,null,null,null,null,null,null,null,null,null,null,null,156]
[null,null,null,null,null,null,null,null,null,null,null,null,null,null,null,null,157]
[null,null,null,null,null,null,null,null,null,null,null,null,null,null,null,null,158]
[null,null,null,null,null,null,null,null,null,null,null,null,null,null,null,null,159]
[null,null,null,null,null,null,null,null,null,null,null,null,null,null,null,null,160]
[null,null,null,null,null,null,null,null,null,null,null,null,null,null,null,null,161]
[null,null,null,null,null,null,null,null,null,null,null,null,null,null,null,null,162]
[null,null,null,null,null,null,null,null,null,null,null,null,null,null,null,null,163]
[null,null,null,null,null,null,null,null,null,null,null,null,null,null,null,null,164]
[null,null,null,null,null,null,null,null,null,null,null,null,null,null,null,null,165]
[null,null,null,null,null,null,null,null,null,null,null,null,null,null,null,null,166]
[null,null,null,null,null,null,null,null,null,null,null,null,null,null,null,null,167]
[null,null,null,null,null,null,null,null,null,null,null,null,null,null,null,null,168]
[null,null,null,null,null,null,null,null,null,null,null,null,null,null,null,null,169]
[null,null,null,null,null,null,null,null,null,null,null,null,null,null,null,null,170]
[null,null,null,null,null,null,null,null,null,null,null,null,null,null,null,null,171]
[null,null,null,null,null,null,null,null,null,null,null,null,null,null,null,null,172]
[null,null,null,null,null,null,null,null,null,null,null,null,null,null,null,null,173]
[null,null,null,null,null,null,null,null,null,null,null,null,null,null,null,null,174]
[null,null,null,null,null,null,null,null,null,null,null,null,null,null,null,null,175]
[null,null,null,null,null,null,null,null,null,null,null,null,null,null,null,null,176]
[null,null,null,null,null,null,null,null,null,null,null,null,null,null,null,null,177]
[null,null,null,null,null,null,null,null,null,null,null,null,null,null,null,null,178]
[null,null,null,null,null,null,null,null,null,null,null,null,null,null,null,null,179]
[null,null,null,null,null,null,null,null,null,null,null,null,null,null,null,null,180]
[null,null,null,null,null,null,null,null,null,null,null,null,null,null,null,null,181]
[null,null,null,null,null,null,null,null,null,null,null,null,null,null,null,null,182]
[null,null,null,null,null,null,null,null,null,null,null,null,null,null,null,null,183]
[null,null,null,null,null,null,null,null,null,null,null,null,null,null,null,null,184]
[null,null,null,null,null,null,null,null,null,null,null,null,null,null,null,null,185]
[null,null,null,null,null,null,null,null,null,null,null,null,null,null,null,null,186]
[null,null,null,null,null,null,null,null,null,null,null,null,null,null,null,null,187]
[null,null,null,null,null,null,null,null,null,null,null,null,null,null,null,null,188]
[null,null,null,null,null,null,null,null,null,null,null,null,null,null,null,null,189]
[null,null,null,null,null,null,null,null,null,null,null,null,null,null,null,null,190]
[null,null,null,null,null,null,null,null,null,null,null,null,null,null,null,null,191]
[null,null,null,null,null,null,null,null,null,null,null,null,null,null,null,null,192]
[null,null,null,null,null,null,null,null,null,null,null,null,null,null,null,null,193]
[null,null,null,null,null,null,null,null,null,null,null,null,null,null,null,null,194]
[null,null,null,null,null,null,null,null,null,null,null,null,null,null,null,null,195]
[null,null,null,null,null,null,null,null,null,null,null,null,null,null,null,null,196]
[null,null,null,null,null,null,null,null,null,null,null,null,null,null,null,null,197]
[null,null,null,null,null,null,null,null,null,null,null,null,null,null,null,null,198]
[null,null,null,null,null,null,null,null,null,null,null,null,null,null,null,null,199]
[null,null,null,null,null,null,null,null,null,null,null,null,null,null,null,null,200]
[null,null,null,null,null,null,null,null,null,null,null,null,null,null,null,null,201]

{"sheet":"Velocity Profile 2b","index":6,"n_rows":10,"n_cols":33,"rows_kept":10,"cut":false,"hidden":false,"merged":[[8,11,8,12],[1,1,1,9],[3,1,3,8],[4,2,4,6],[4,7,4,8],[5,7,5,8],[7,1,7,32],[8,1,8,2],[8,3,8,4],[8,5,8,6],[8,7,8,8],[8,9,8,10],[8,25,8,26],[8,27,8,28],[8,29,8,30],[8,31,8,32],[8,23,8,24],[8,13,8,14],[8,15,8,16],[8,17,8,18],[8,19,8,20],[8,21,8,22]]}
[]
[null,"Velocity Profiles"]
[]
[null,"Required input:"]
[null,"1)","Normalized velocity magnitude profiles",null,null,null,null,"mandatory"]
[null,null,"Distance referes to starting point of the individual profiles (s. note)"]
[]
[null,{"$f":"'META Data'!F17","v":"ID__"}]
[null,"L1",null,"R1",null,"R2",null,"R3",null,"U1",null,"U2",null,"U3",null,"U4",null,"U5",null,"U6",null,"V1",null,"V2",null,"V3",null,"V4",null,"V5",null,"V6"]
[null,"Vmag/V∞ [-]","Distance [m]","Vmag/V∞ [-]","Distance [m]","Vmag/V∞ [-]","Distance [m]","Vmag/V∞ [-]","Distance [m]","Vmag/V∞ [-]","Distance [m]","Vmag/V∞ [-]","Distance [m]","Vmag/V∞ [-]","Distance [m]","Vmag/V∞ [-]","Distance [m]","Vmag/V∞ [-]","Distance [m]","Vmag/V∞ [-]","Distance [m]","Vmag/V∞ [-]","Distance [m]","Vmag/V∞ [-]","Distance [m]","Vmag/V∞ [-]","Distance [m]","Vmag/V∞ [-]","Distance [m]","Vmag/V∞ [-]","Distance [m]","Vmag/V∞ [-]","Distance [m]"]

{"sheet":"Surface Data 2b","index":7,"n_rows":218,"n_cols":11,"rows_kept":218,"cut":false,"hidden":false,"merged":[[7,3,7,4],[1,1,1,10],[3,1,3,9],[4,2,4,8],[5,2,5,8],[7,5,7,9],[9,1,31,1],[9,2,31,2],[9,3,31,3],[9,10,31,10],[32,1,51,1],[32,2,51,2],[32,3,51,3],[32,10,51,10],[52,1,62,1],[52,2,62,2],[52,3,62,3],[52,10,62,10],[63,1,73,1],[63,2,73,2],[63,3,73,3],[63,10,73,10],[74,1,101,1],[74,2,101,2],[74,3,101,3],[74,10,101,10],[102,1,104,1],[102,2,104,2],[102,3,104,3],[102,10,104,10],[105,1,116,1],[105,2,116,2],[105,3,116,3],[105,10,116,10],[117,1,127,1],[117,2,127,2],[117,3,127,3],[117,10,127,10],[128,1,133,1],[128,2,133,2],[128,3,133,3],[128,10,133,10],[134,1,143,1],[134,2,143,2],[134,3,143,3],[134,10,143,10],[184,1,217,1],[184,2,217,2],[184,3,217,3],[184,10,217,10],[144,1,157,1],[144,2,157,2],[144,3,157,3],[144,10,157,10],[158,1,183,1],[158,2,183,2],[158,3,183,3],[158,10,183,10]]}
[]
[null,"Surface Pressure"]
[]
[null,"Required input:"]
[null,"1)","Time averaged static pressure coefficient Cp at all pressure probe locations",null,null,null,null,null,null,"mandatory"]
[null,"2)","Time averaged upperbody skin centerline friction coefficient magnitude (Cf) at marked locations",null,null,null,null,null,null,"mandatory"]
[]
[null,null,null,"Simulation title:",null,{"$f":"'META Data'!F17","v":"ID__"}]
[null,null,"ANSA PID","# of Probes","Probe \n# ","X [mm]","Y [mm]","Z [mm]","Cp [-]","Cf [-]","Picture"]
[null,"Upperbody Centerline (TUM)","600 - PROBES - TUM Main body centerline",23,1,-798.25,0,150]
[null,null,null,null,2,-700,0,406.35]
[null,null,null,null,3,-600,0,462.63]
[null,null,null,null,4,-500,0,499.45]
[null,null,null,null,5,-400,0,527.70000000000005]
[null,null,null,null,6,-300,0,550.85]
[null,null,null,null,7,-100,0,587.73]
[null,null,null,null,8,0,0,603.04999999999995]
[null,null,null,null,9,100,0,616.9]
[null,null,null,null,10,300,0,640.83000000000004]
[null,null,null,null,11,350,0,645.92999999999995]
[null,null,null,null,12,413.1,0,625]
[null,null,null,null,13,464.13,0,625]
[null,null,null,null,14,543.17999999999995,0,675]
[null,null,null,null,15,624.25,0,725]
[null,null,null,null,16,707.88,0,775]
[null,null,null,null,17,885.33,0,875]
[null,null,null,null,18,1084.9000000000001,0,975]
[null,null,null,null,19,1199,0,1025]
[null,null,null,null,20,1300,0,1051.5]
[null,null,null,null,21,3752.7,0,450]
[null,null,null,null,22,3757.9,0,350]
[null,null,null,null,23,3804.1,0,250]
[null,"Sidewall z = 150mm (TUM)","601 - PROBES - TUM Main body z-plane 150mm",20,24,-793.1,-200,150]
[null,null,null,null,25,-758.35,-400,150]
[null,null,null,null,26,-671.63,-600,150]
[null,null,null,null,27,-526.25,-800,150]
[null,null,null,null,28,500,-880.55,150]
[null,null,null,null,29,700,-883.25,150]
[null,null,null,null,30,900,-889.2,150]
[null,null,null,null,31,1100,-893.23,150]
[null,null,null,null,32,1300,-895.28,150]
[null,null,null,null,33,1500,-895.4,150]
[null,null,null,null,34,1700,-893.55,150]
[null,null,null,null,35,1900,-889.7,150]
[null,null,null,null,36,2100,-883.78,150]
[null,null,null,null,37,2300,-883.98,150]
[null,null,null,null,38,3300,-830.78,150]
[null,null,null,null,39,3500,-777.73,150]
[null,null,null,null,40,3656.8,-700,150]
[null,null,null,null,41,3712.5,-600,150]
[null,null,null,null,42,3765.4,-400,150]
[null,null,null,null,43,3791.3,-200,150]
[null,"Side Window (TUM)","602 - PROBES - TUM Side Window",11,44,1100,-681.75,875]
[null,null,null,null,45,1300,-630.23,975]
[null,null,null,null,46,1100,-723.63,775]
[null,null,null,null,47,1300,-681.85,875]
[null,null,null,null,48,1100,-761.53,675]
[null,null,null,null,49,1300,-766.35,675]
[null,null,null,null,50,1300,-728.8,775]
[null,null,null,null,51,1500,-769.13,675]
[null,null,null,null,52,1500,-731.85,775]
[null,null,null,null,53,1500,-685.2,875]
[null,null,null,null,54,1500,-628.04999999999995,975]
[null,"Front Window (TUM)","603 - PROBES - TUM Front Window",11,55,553.5,-200,675]
[null,null,null,null,56,718.28,-200,775]
[null,null,null,null,57,895.8,-200,875]
[null,null,null,null,58,1095.9000000000001,-200,975]
[null,null,null,null,59,589.20000000000005,-400,675]
[null,null,null,null,60,754.38,-400,775]
[null,null,null,null,61,932.43,-400,875]
[null,null,null,null,62,1134.9000000000001,-400,975]
[null,null,null,null,63,661.1,-600,675]
[null,null,null,null,64,827.65,-600,775]
[null,null,null,null,65,1007.9,-600,875]
[null,"Notchback (TUM)","604 - PROBES - TUM Notchback",28,107,1900,0,1102.4000000000001]
[null,null,null,null,108,2100,0,1100.28]
[null,null,null,null,109,2300,0,1090.3]
[null,null,null,null,110,2500,0,1067.1500000000001]
[null,null,null,null,111,2600,0,1047.75]
[null,null,null,null,112,2700,0,1017.73]
[null,null,null,null,113,2820.15,0,975]
[null,null,null,null,114,2944.43,0,925]
[null,null,null,null,115,3057.9,0,875]
[null,null,null,null,116,3164.15,0,825]
[null,null,null,null,117,3265.23,0,775]
[null,null,null,null,118,3300,0,757.33]
[null,null,null,null,119,3400,0,746.1]
[null,null,null,null,120,3500,0,735.35]
[null,null,null,null,121,3575.25,0,725]
[null,null,null,null,122,3700,0,717.45]
[null,null,null,null,123,3709.73,0,650]
[null,null,null,null,124,3715.28,0,600]
[null,null,null,null,125,2803.68,-200,975]
[null,null,null,null,126,3042.9,-200,875]
[null,null,null,null,127,3251.25,-200,775]
[null,null,null,null,128,3500,-200,731.48]
[null,null,null,null,129,2743.55,-400,975]
[null,null,null,null,130,2989.1,-400,875]
[null,null,null,null,131,3200.9,-400,775]
[null,null,null,null,132,3500,-400,721.2]
[null,null,null,null,133,2619.5,-600,975]
[null,null,null,null,134,2778.4,-600,925]
[null,"Mainbody Centerline (Ford)","610 - PROBES - Ford Main body centerline",3,191,-804.8,0,-103]
[null,null,null,null,193,3799.3,0,150]
[null,null,null,null,195,-724.8,0,384.1]
[null,"Sidewall z = 150mm (Ford)","611 - PROBES - Ford Main body z-plane 150mm",12,196,-453,-843.4,150]
[null,null,null,null,197,375,-887.8,150]
[null,null,null,null,198,3588,-748,150]
[null,null,null,null,199,3300,830.8,150]
[null,null,null,null,200,3500,777.7,150]
[null,null,null,null,201,3656.8,700,150]
[null,null,null,null,202,-592,-730.5,150]
[null,null,null,null,203,-394,-859.9,150]
[null,null,null,null,204,2400,-888.9,150]
[null,null,null,null,205,3208,-855.5,150]
[null,null,null,null,206,3588,748,150]
[null,null,null,null,207,3765,400,150]
[null,"Side Window (Ford)","612 - PROBES - Ford Side Window",11,208,1020,-759,675]
[null,null,null,null,209,1020,-741.1,725]
[null,null,null,null,210,1020,-720.9,775]
[null,null,null,null,211,1100,-698.8,830]
[null,null,null,null,212,1200,-676.7,880]
[null,null,null,null,213,1300,-654.5,925]
[null,null,null,null,214,1400,-641.79999999999995,950]
[null,null,null,null,215,1200,-706.5,820]
[null,null,null,null,216,1200,-724.4,780]
[null,null,null,null,217,1400,-681.2,880]
[null,null,null,null,218,1400,-728.5,780]
[null,"A-Pillar (Ford)","613 - PROBES - Ford A-Pillar",6,219,728.2,-733,675]
[null,null,null,null,220,874.3,-701.5,775]
[null,null,null,null,221,1034.3,-664.5,875]
[null,null,null,null,222,1219,-617,975]
[null,null,null,null,223,1018.3,-648.70000000000005,875]
[null,null,null,null,224,1060,-675.8,875]
[null,"Rearend z = 500mm (Ford)","614 - PROBES - Ford Main body z-plane 500mm",10,225,3300,-782.4,500]
[null,null,null,null,226,3425,-762.3,500]
[null,null,null,null,227,3525,-743.3,500]
[null,null,null,null,228,3599.5,-690,500]
[null,null,null,null,229,3646.2,-600,500]
[null,null,null,null,230,3300,782.4,500]
[null,null,null,null,231,3425,762.3,500]
[null,null,null,null,232,3525,743.3,500]
[null,null,null,null,233,3599.5,690,500]
[null,null,null,null,234,3646.2,600,500]
[null,"Notchback (Ford)","615 - PROBES - Ford Notchback",14,259,2930.6,-689.8,775]
[null,null,null,null,260,3008.4,-677.2,775]
[null,null,null,null,261,3085.5,-643.1,775]
[null,null,null,null,262,2753.8,-656.6,875]
[null,null,null,null,263,2831.7,-643.29999999999995,875]
[null,null,null,null,264,2872.8,-625.70000000000005,875]
[null,null,null,null,265,2561.1999999999998,-619.1,963.8]
[null,null,null,null,266,2664.2,-576,975]
[null,null,null,null,267,3099.9,-588.4,775]
[null,null,null,null,268,2897.9,-565.20000000000005,875]
[null,null,null,null,269,2667.9,-529.1,975]
[null,null,null,null,270,3008.4,677.2,775]
[null,null,null,null,271,2831.7,643.29999999999995,875]
[null,null,null,null,272,2619.5,600,975]
[null,"Wheelhouse (Ford)","624 - PROBES - Ford Front Wheelhouse",26,550,-380.29,-750,-115]
[null,null,null,null,551,-343.04,-600,-115]
[null,null,null,null,552,-130,-479,-155]
[null,null,null,null,553,0,-473.4,-155]
[null,null,null,null,554,130,-467.81,-155]
[null,null,null,null,555,334.9,-506.09,-115]
[null,null,null,null,556,384.79,-600,-115]
[null,null,null,null,557,406,-750,-115]
[null,null,null,null,558,-377.67,-750,43.15]
[null,null,null,null,559,-356.53,-750,199]
[null,null,null,null,560,-272.73,-750,331.81]
[null,null,null,null,561,-143.05000000000001,-750,420.67]
[null,null,null,null,562,10.68,-750,452.54]
[null,null,null,null,563,164.46,-750,420.88]
[null,null,null,null,564,293.38,-750,330.82]
[null,null,null,null,565,378.34,-750,198.6]
[null,null,null,null,566,401.96,-750,43.11]
[null,null,null,null,567,-339.45,-600,30.23]
[null,null,null,null,568,-318.19,-600,173.58]
[null,null,null,null,569,-245.15,-600,298.08]
[null,null,null,null,570,-127.79,-600,381.66]
[null,null,null,null,571,13.6,-600,409.76]
[null,null,null,null,572,154.19,-600,378.11]
[null,null,null,null,573,270.12,-600,291.95]
[null,null,null,null,574,351.02,-600,171.73]
[null,null,null,null,575,379.08,-600,30.12]
[null,"Detailed Underbody Open Cooling (Ford)","625 - PROBES - Ford OCDA Detailed Underbody",34,600,-762.5,0,-111.2]
[null,null,null,null,601,-729.72,0,-115]
[null,null,null,null,602,-697,0,-118.78]
[null,null,null,null,603,-600,0,-130]
[null,null,null,null,604,-400,0,-153.125]
[null,null,null,null,605,-200,0,-165.55]
[null,null,null,null,606,0,0,-170.72499999999999]
[null,null,null,null,607,200,0,-170.47499999999999]
[null,null,null,null,608,580,0,211.4]
[null,null,null,null,609,900,0,154.80000000000001]
[null,null,null,null,610,1100,0,109.15]
[null,null,null,null,611,1500,0,85.27]
[null,null,null,null,612,1700,0,76.430000000000007]
[null,null,null,null,613,1900,0,67]
[null,null,null,null,614,2500,0,-82.77]
[null,null,null,null,615,2700,0,-123.43]
[null,null,null,null,616,2900,0,-118.44]
[null,null,null,null,617,3100,0,-104.17]
[null,null,null,null,618,3300,0,-89.08]
[null,null,null,null,619,3500,0,-68.5]
[null,null,null,null,620,3700,0,-31.07]
[null,null,null,null,621,540,-339.3,-120]
[null,null,null,null,622,750,-328.45,-120]
[null,null,null,null,623,1100,-590,-155.66]
[null,null,null,null,624,1500,-360,-150.12]
[null,null,null,null,625,400,-550,-159.6]
[null,null,null,null,626,500,-700,-159.69999999999999]
[null,null,null,null,627,540,-590,-164.6]
[null,null,null,null,628,750,-590,-160.05000000000001]
[null,null,null,null,629,1100,-360,-155.66]
[null,null,null,null,630,1500,-590,-150.12]
[null,null,null,null,631,2403.6999999999998,-740,-97.1]
[null,null,null,null,632,2793.2,-740,461.5]
[null,null,null,null,633,3172.9,-740,185.2]

{"sheet":"Surface Data (Test 2a)","index":8,"n_rows":223,"n_cols":13,"rows_kept":223,"cut":false,"hidden":true,"merged":[[4,10,4,11],[6,1,48,1],[4,6,4,7],[1,1,1,9],[195,1,202,1],[142,1,151,1],[132,1,141,1],[124,1,131,1],[120,1,123,1],[109,1,119,1],[98,1,108,1],[71,1,97,1],[49,1,70,1],[203,1,222,1],[184,1,194,1],[171,1,183,1],[152,1,157,1],[158,1,170,1]]}
[]
[null,"Resorting of pressure data to enable plotting"]
[null,"To access wind tunnel test results unhide column G to I. Results will be displayed in \"Pressure Probe Plots\" sheet"]
[]
[null,null,null,null,null,null,"Cp [-]",null,"DCp[-]",null,"Cf [-]",null,"DCf[-]"]
[null,null,"Probe \n# ","X [mm]","Y [mm]","Z [mm]","Ford_Pininfarina_171116",{"$f":"'META Data'!E17","v":"ID__"},"Test - CFD",null,"CFD Reference Data",{"$f":"'META Data'!E17","v":"ID__"},"CFD - CFDRef"]
[null,"Upperbody Cenerline",1,-798.25,0,150,null,{"$f":"VLOOKUP(C7,'Surface Data 2a'!$E$10:$I$218,5,FALSE)","v":0},{"$f":"G7-H7","v":0},null,null,{"$f":"VLOOKUP(C7,'Surface Data 2a'!$E$10:$J$218,6,FALSE)","v":0},{"$f":"K7-L7","v":0}]
[null,null,195,-724.8,0,384.1,null,{"$f":"VLOOKUP(C8,'Surface Data 2a'!$E$10:$I$218,5,FALSE)","v":0},0,null,null,{"$f":"VLOOKUP(C8,'Surface Data 2a'!$E$10:$J$218,6,FALSE)","v":0},0]
[null,null,2,-700,0,406.35,null,{"$f":"VLOOKUP(C9,'Surface Data 2a'!$E$10:$I$218,5,FALSE)","v":0},0,null,null,{"$f":"VLOOKUP(C9,'Surface Data 2a'!$E$10:$J$218,6,FALSE)","v":0},0]
[null,null,3,-600,0,462.63,null,{"$f":"VLOOKUP(C10,'Surface Data 2a'!$E$10:$I$218,5,FALSE)","v":0},0,null,null,{"$f":"VLOOKUP(C10,'Surface Data 2a'!$E$10:$J$218,6,FALSE)","v":0},0]
[null,null,4,-500,0,499.45,null,{"$f":"VLOOKUP(C11,'Surface Data 2a'!$E$10:$I$218,5,FALSE)","v":0},0,null,null,{"$f":"VLOOKUP(C11,'Surface Data 2a'!$E$10:$J$218,6,FALSE)","v":0},0]
[null,null,5,-400,0,527.70000000000005,null,{"$f":"VLOOKUP(C12,'Surface Data 2a'!$E$10:$I$218,5,FALSE)","v":0},0,null,null,{"$f":"VLOOKUP(C12,'Surface Data 2a'!$E$10:$J$218,6,FALSE)","v":0},0]
[null,null,6,-300,0,550.85,null,{"$f":"VLOOKUP(C13,'Surface Data 2a'!$E$10:$I$218,5,FALSE)","v":0},0,null,null,{"$f":"VLOOKUP(C13,'Surface Data 2a'!$E$10:$J$218,6,FALSE)","v":0},0]
[null,null,7,-100,0,587.73,null,{"$f":"VLOOKUP(C14,'Surface Data 2a'!$E$10:$I$218,5,FALSE)","v":0},0,null,null,{"$f":"VLOOKUP(C14,'Surface Data 2a'!$E$10:$J$218,6,FALSE)","v":0},0]
[null,null,8,0,0,603.04999999999995,null,{"$f":"VLOOKUP(C15,'Surface Data 2a'!$E$10:$I$218,5,FALSE)","v":0},0,null,null,{"$f":"VLOOKUP(C15,'Surface Data 2a'!$E$10:$J$218,6,FALSE)","v":0},0]
[null,null,9,100,0,616.9,null,{"$f":"VLOOKUP(C16,'Surface Data 2a'!$E$10:$I$218,5,FALSE)","v":0},0,null,null,{"$f":"VLOOKUP(C16,'Surface Data 2a'!$E$10:$J$218,6,FALSE)","v":0},0]
[null,null,10,300,0,640.83000000000004,null,{"$f":"VLOOKUP(C17,'Surface Data 2a'!$E$10:$I$218,5,FALSE)","v":0},0,null,null,{"$f":"VLOOKUP(C17,'Surface Data 2a'!$E$10:$J$218,6,FALSE)","v":0},0]
[null,null,11,350,0,645.92999999999995,null,{"$f":"VLOOKUP(C18,'Surface Data 2a'!$E$10:$I$218,5,FALSE)","v":0},0,null,null,{"$f":"VLOOKUP(C18,'Surface Data 2a'!$E$10:$J$218,6,FALSE)","v":0},0]
[null,null,12,413.1,0,625,null,{"$f":"VLOOKUP(C19,'Surface Data 2a'!$E$10:$I$218,5,FALSE)","v":0},0,null,null,{"$f":"VLOOKUP(C19,'Surface Data 2a'!$E$10:$J$218,6,FALSE)","v":0},0]
[null,null,13,464.13,0,625,null,{"$f":"VLOOKUP(C20,'Surface Data 2a'!$E$10:$I$218,5,FALSE)","v":0},0,null,null,{"$f":"VLOOKUP(C20,'Surface Data 2a'!$E$10:$J$218,6,FALSE)","v":0},0]
[null,null,14,543.17999999999995,0,675,null,{"$f":"VLOOKUP(C21,'Surface Data 2a'!$E$10:$I$218,5,FALSE)","v":0},0,null,null,{"$f":"VLOOKUP(C21,'Surface Data 2a'!$E$10:$J$218,6,FALSE)","v":0},0]
[null,null,15,624.25,0,725,null,{"$f":"VLOOKUP(C22,'Surface Data 2a'!$E$10:$I$218,5,FALSE)","v":0},0,null,null,{"$f":"VLOOKUP(C22,'Surface Data 2a'!$E$10:$J$218,6,FALSE)","v":0},0]
[null,null,16,707.88,0,775,null,{"$f":"VLOOKUP(C23,'Surface Data 2a'!$E$10:$I$218,5,FALSE)","v":0},0,null,null,{"$f":"VLOOKUP(C23,'Surface Data 2a'!$E$10:$J$218,6,FALSE)","v":0},0]
[null,null,17,885.33,0,875,null,{"$f":"VLOOKUP(C24,'Surface Data 2a'!$E$10:$I$218,5,FALSE)","v":0},0,null,null,{"$f":"VLOOKUP(C24,'Surface Data 2a'!$E$10:$J$218,6,FALSE)","v":0},0]
[null,null,18,1084.9000000000001,0,975,null,{"$f":"VLOOKUP(C25,'Surface Data 2a'!$E$10:$I$218,5,FALSE)","v":0},0,null,null,{"$f":"VLOOKUP(C25,'Surface Data 2a'!$E$10:$J$218,6,FALSE)","v":0},0]
[null,null,19,1199,0,1025,null,{"$f":"VLOOKUP(C26,'Surface Data 2a'!$E$10:$I$218,5,FALSE)","v":0},0,null,null,{"$f":"VLOOKUP(C26,'Surface Data 2a'!$E$10:$J$218,6,FALSE)","v":0},0]
[null,null,20,1300,0,1051.5,null,{"$f":"VLOOKUP(C27,'Surface Data 2a'!$E$10:$I$218,5,FALSE)","v":0},0,null,null,{"$f":"VLOOKUP(C27,'Surface Data 2a'!$E$10:$J$218,6,FALSE)","v":0},0]
[null,null,107,1900,0,1102.4000000000001,null,{"$f":"VLOOKUP(C28,'Surface Data 2a'!$E$10:$I$218,5,FALSE)","v":0},0,null,null,{"$f":"VLOOKUP(C28,'Surface Data 2a'!$E$10:$J$218,6,FALSE)","v":0},0]
[null,null,108,2100,0,1100.28,null,{"$f":"VLOOKUP(C29,'Surface Data 2a'!$E$10:$I$218,5,FALSE)","v":0},0,null,null,{"$f":"VLOOKUP(C29,'Surface Data 2a'!$E$10:$J$218,6,FALSE)","v":0},0]
[null,null,109,2300,0,1090.3,null,{"$f":"VLOOKUP(C30,'Surface Data 2a'!$E$10:$I$218,5,FALSE)","v":0},0,null,null,{"$f":"VLOOKUP(C30,'Surface Data 2a'!$E$10:$J$218,6,FALSE)","v":0},0]
[null,null,110,2500,0,1067.1500000000001,null,{"$f":"VLOOKUP(C31,'Surface Data 2a'!$E$10:$I$218,5,FALSE)","v":0},0,null,null,{"$f":"VLOOKUP(C31,'Surface Data 2a'!$E$10:$J$218,6,FALSE)","v":0},0]
[null,null,111,2600,0,1047.75,null,{"$f":"VLOOKUP(C32,'Surface Data 2a'!$E$10:$I$218,5,FALSE)","v":0},0,null,null,{"$f":"VLOOKUP(C32,'Surface Data 2a'!$E$10:$J$218,6,FALSE)","v":0},0]
[null,null,112,2700,0,1017.73,null,{"$f":"VLOOKUP(C33,'Surface Data 2a'!$E$10:$I$218,5,FALSE)","v":0},0,null,null,{"$f":"VLOOKUP(C33,'Surface Data 2a'!$E$10:$J$218,6,FALSE)","v":0},0]
[null,null,113,2820.15,0,975,null,{"$f":"VLOOKUP(C34,'Surface Data 2a'!$E$10:$I$218,5,FALSE)","v":0},0,null,null,{"$f":"VLOOKUP(C34,'Surface Data 2a'!$E$10:$J$218,6,FALSE)","v":0},0]
[null,null,114,2944.43,0,925,null,{"$f":"VLOOKUP(C35,'Surface Data 2a'!$E$10:$I$218,5,FALSE)","v":0},0,null,null,{"$f":"VLOOKUP(C35,'Surface Data 2a'!$E$10:$J$218,6,FALSE)","v":0},0]
[null,null,115,3057.9,0,875,null,{"$f":"VLOOKUP(C36,'Surface Data 2a'!$E$10:$I$218,5,FALSE)","v":0},0,null,null,{"$f":"VLOOKUP(C36,'Surface Data 2a'!$E$10:$J$218,6,FALSE)","v":0},0]
[null,null,116,3164.15,0,825,null,{"$f":"VLOOKUP(C37,'Surface Data 2a'!$E$10:$I$218,5,FALSE)","v":0},0,null,null,{"$f":"VLOOKUP(C37,'Surface Data 2a'!$E$10:$J$218,6,FALSE)","v":0},0]
[null,null,117,3265.23,0,775,null,{"$f":"VLOOKUP(C38,'Surface Data 2a'!$E$10:$I$218,5,FALSE)","v":0},0,null,null,{"$f":"VLOOKUP(C38,'Surface Data 2a'!$E$10:$J$218,6,FALSE)","v":0},0]
[null,null,118,3300,0,757.33,null,{"$f":"VLOOKUP(C39,'Surface Data 2a'!$E$10:$I$218,5,FALSE)","v":0},0,null,null,{"$f":"VLOOKUP(C39,'Surface Data 2a'!$E$10:$J$218,6,FALSE)","v":0},0]
[null,null,119,3400,0,746.1,null,{"$f":"VLOOKUP(C40,'Surface Data 2a'!$E$10:$I$218,5,FALSE)","v":0},0,null,null,{"$f":"VLOOKUP(C40,'Surface Data 2a'!$E$10:$J$218,6,FALSE)","v":0},0]
[null,null,120,3500,0,735.35,null,{"$f":"VLOOKUP(C41,'Surface Data 2a'!$E$10:$I$218,5,FALSE)","v":0},0,null,null,{"$f":"VLOOKUP(C41,'Surface Data 2a'!$E$10:$J$218,6,FALSE)","v":0},0]
[null,null,121,3575.25,0,725,null,{"$f":"VLOOKUP(C42,'Surface Data 2a'!$E$10:$I$218,5,FALSE)","v":0},0,null,null,{"$f":"VLOOKUP(C42,'Surface Data 2a'!$E$10:$J$218,6,FALSE)","v":0},0]
[null,null,122,3700,0,717.45,null,{"$f":"VLOOKUP(C43,'Surface Data 2a'!$E$10:$I$218,5,FALSE)","v":0},0,null,null,{"$f":"VLOOKUP(C43,'Surface Data 2a'!$E$10:$J$218,6,FALSE)","v":0},0]
[null,null,123,3709.73,0,650,null,{"$f":"VLOOKUP(C44,'Surface Data 2a'!$E$10:$I$218,5,FALSE)","v":0},0,null,null,{"$f":"VLOOKUP(C44,'Surface Data 2a'!$E$10:$J$218,6,FALSE)","v":0},0]
[null,null,124,3715.28,0,600,null,{"$f":"VLOOKUP(C45,'Surface Data 2a'!$E$10:$I$218,5,FALSE)","v":0},0,null,null,{"$f":"VLOOKUP(C45,'Surface Data 2a'!$E$10:$J$218,6,FALSE)","v":0},0]
[null,null,21,3752.7,0,450,null,{"$f":"VLOOKUP(C46,'Surface Data 2a'!$E$10:$I$218,5,FALSE)","v":0},0,null,null,{"$f":"VLOOKUP(C46,'Surface Data 2a'!$E$10:$J$218,6,FALSE)","v":0},0]
[null,null,22,3757.9,0,350,null,{"$f":"VLOOKUP(C47,'Surface Data 2a'!$E$10:$I$218,5,FALSE)","v":0},0,null,null,{"$f":"VLOOKUP(C47,'Surface Data 2a'!$E$10:$J$218,6,FALSE)","v":0},0]
[null,null,23,3804.1,0,250,null,{"$f":"VLOOKUP(C48,'Surface Data 2a'!$E$10:$I$218,5,FALSE)","v":0},{"$f":"G48-H48","v":0},null,null,{"$f":"VLOOKUP(C48,'Surface Data 2a'!$E$10:$J$218,6,FALSE)","v":0},{"$f":"K48-L48","v":0}]
[null,null,193,3799.3,0,150,null,{"$f":"VLOOKUP(C49,'Surface Data 2a'!$E$10:$I$218,5,FALSE)","v":0},0,null,null,{"$f":"VLOOKUP(C49,'Surface Data 2a'!$E$10:$J$218,6,FALSE)","v":0},{"$f":"K49-L49","v":0}]
[null,"Underbody Centerline",191,-804.8,0,-103,null,{"$f":"VLOOKUP(C50,'Surface Data 2a'!$E$10:$I$218,5,FALSE)","v":0},0]
[null,null,600,-762.5,0,-111.2,null,{"$f":"VLOOKUP(C51,'Surface Data 2a'!$E$10:$I$218,5,FALSE)","v":0},0]
[null,null,601,-729.72,0,-115,null,{"$f":"VLOOKUP(C52,'Surface Data 2a'!$E$10:$I$218,5,FALSE)","v":0},0]
[null,null,602,-697,0,-118.78,null,{"$f":"VLOOKUP(C53,'Surface Data 2a'!$E$10:$I$218,5,FALSE)","v":0},0]
[null,null,603,-600,0,-130,null,{"$f":"VLOOKUP(C54,'Surface Data 2a'!$E$10:$I$218,5,FALSE)","v":0},0]
[null,null,604,-400,0,-153.125,null,{"$f":"VLOOKUP(C55,'Surface Data 2a'!$E$10:$I$218,5,FALSE)","v":0},0]
[null,null,605,-200,0,-165.55,null,{"$f":"VLOOKUP(C56,'Surface Data 2a'!$E$10:$I$218,5,FALSE)","v":0},0]
[null,null,606,0,0,-170.72499999999999,null,{"$f":"VLOOKUP(C57,'Surface Data 2a'!$E$10:$I$218,5,FALSE)","v":0},0]
[null,null,607,200,0,-170.47499999999999,null,{"$f":"VLOOKUP(C58,'Surface Data 2a'!$E$10:$I$218,5,FALSE)","v":0},0]
[null,null,608,580,0,211.4,null,{"$f":"VLOOKUP(C59,'Surface Data 2a'!$E$10:$I$218,5,FALSE)","v":0},0]
[null,null,609,900,0,154.80000000000001,null,{"$f":"VLOOKUP(C60,'Surface Data 2a'!$E$10:$I$218,5,FALSE)","v":0},0]
[null,null,610,1100,0,109.15,null,{"$f":"VLOOKUP(C61,'Surface Data 2a'!$E$10:$I$218,5,FALSE)","v":0},0]
[null,null,611,1500,0,85.27,null,{"$f":"VLOOKUP(C62,'Surface Data 2a'!$E$10:$I$218,5,FALSE)","v":0},0]
[null,null,612,1700,0,76.430000000000007,null,{"$f":"VLOOKUP(C63,'Surface Data 2a'!$E$10:$I$218,5,FALSE)","v":0},0]
[null,null,613,1900,0,67,null,{"$f":"VLOOKUP(C64,'Surface Data 2a'!$E$10:$I$218,5,FALSE)","v":0},0]
[null,null,614,2500,0,-82.77,null,{"$f":"VLOOKUP(C65,'Surface Data 2a'!$E$10:$I$218,5,FALSE)","v":0},0]
[null,null,615,2700,0,-123.43,null,{"$f":"VLOOKUP(C66,'Surface Data 2a'!$E$10:$I$218,5,FALSE)","v":0},0]
[null,null,616,2900,0,-118.44,null,{"$f":"VLOOKUP(C67,'Surface Data 2a'!$E$10:$I$218,5,FALSE)","v":0},0]
[null,null,617,3100,0,-104.17,null,{"$f":"VLOOKUP(C68,'Surface Data 2a'!$E$10:$I$218,5,FALSE)","v":0},0]
[null,null,618,3300,0,-89.08,null,{"$f":"VLOOKUP(C69,'Surface Data 2a'!$E$10:$I$218,5,FALSE)","v":0},0]
[null,null,619,3500,0,-68.5,null,{"$f":"VLOOKUP(C70,'Surface Data 2a'!$E$10:$I$218,5,FALSE)","v":0},0]
[null,null,620,3700,0,-31.07,null,{"$f":"VLOOKUP(C71,'Surface Data 2a'!$E$10:$I$218,5,FALSE)","v":0},0]
[null,"Sidewall z = 150mm",24,-793.1,-200,150,null,{"$f":"VLOOKUP(C72,'Surface Data 2a'!$E$10:$I$218,5,FALSE)","v":0},{"$f":"G72-H72","v":0}]
[null,null,25,-758.35,-400,150,null,{"$f":"VLOOKUP(C73,'Surface Data 2a'!$E$10:$I$218,5,FALSE)","v":0},0]
[null,null,26,-671.63,-600,150,null,{"$f":"VLOOKUP(C74,'Surface Data 2a'!$E$10:$I$218,5,FALSE)","v":0},0]
[null,null,202,-592,-730.5,150,null,{"$f":"VLOOKUP(C75,'Surface Data 2a'!$E$10:$I$218,5,FALSE)","v":0},0]
[null,null,27,-526.25,-800,150,null,{"$f":"VLOOKUP(C76,'Surface Data 2a'!$E$10:$I$218,5,FALSE)","v":0},0]
[null,null,196,-453,-843.4,150,null,{"$f":"VLOOKUP(C77,'Surface Data 2a'!$E$10:$I$218,5,FALSE)","v":0},0]
[null,null,203,-394,-859.9,150,null,{"$f":"VLOOKUP(C78,'Surface Data 2a'!$E$10:$I$218,5,FALSE)","v":0},0]
[null,null,197,375,-887.8,150,null,{"$f":"VLOOKUP(C79,'Surface Data 2a'!$E$10:$I$218,5,FALSE)","v":0},0]
[null,null,28,500,-880.55,150,null,{"$f":"VLOOKUP(C80,'Surface Data 2a'!$E$10:$I$218,5,FALSE)","v":0},0]
[null,null,29,700,-883.25,150,null,{"$f":"VLOOKUP(C81,'Surface Data 2a'!$E$10:$I$218,5,FALSE)","v":0},0]
[null,null,30,900,-889.2,150,null,{"$f":"VLOOKUP(C82,'Surface Data 2a'!$E$10:$I$218,5,FALSE)","v":0},0]
[null,null,31,1100,-893.23,150,null,{"$f":"VLOOKUP(C83,'Surface Data 2a'!$E$10:$I$218,5,FALSE)","v":0},0]
[null,null,32,1300,-895.28,150,null,{"$f":"VLOOKUP(C84,'Surface Data 2a'!$E$10:$I$218,5,FALSE)","v":0},0]
[null,null,33,1500,-895.4,150,null,{"$f":"VLOOKUP(C85,'Surface Data 2a'!$E$10:$I$218,5,FALSE)","v":0},0]
[null,null,34,1700,-893.55,150,null,{"$f":"VLOOKUP(C86,'Surface Data 2a'!$E$10:$I$218,5,FALSE)","v":0},0]
[null,null,35,1900,-889.7,150,null,{"$f":"VLOOKUP(C87,'Surface Data 2a'!$E$10:$I$218,5,FALSE)","v":0},0]
[null,null,36,2100,-883.78,150,null,{"$f":"VLOOKUP(C88,'Surface Data 2a'!$E$10:$I$218,5,FALSE)","v":0},0]
[null,null,37,2300,-883.98,150,null,{"$f":"VLOOKUP(C89,'Surface Data 2a'!$E$10:$I$218,5,FALSE)","v":0},0]
[null,null,204,2400,-888.9,150,null,{"$f":"VLOOKUP(C90,'Surface Data 2a'!$E$10:$I$218,5,FALSE)","v":0},0]
[null,null,205,3208,-855.5,150,null,{"$f":"VLOOKUP(C91,'Surface Data 2a'!$E$10:$I$218,5,FALSE)","v":0},0]
[null,null,38,3300,-830.78,150,null,{"$f":"VLOOKUP(C92,'Surface Data 2a'!$E$10:$I$218,5,FALSE)","v":0},0]
[null,null,39,3500,-777.73,150,null,{"$f":"VLOOKUP(C93,'Surface Data 2a'!$E$10:$I$218,5,FALSE)","v":0},0]
[null,null,198,3588,-748,150,null,{"$f":"VLOOKUP(C94,'Surface Data 2a'!$E$10:$I$218,5,FALSE)","v":0},0]
[null,null,40,3656.8,-700,150,null,{"$f":"VLOOKUP(C95,'Surface Data 2a'!$E$10:$I$218,5,FALSE)","v":0},0]
[null,null,41,3712.5,-600,150,null,{"$f":"VLOOKUP(C96,'Surface Data 2a'!$E$10:$I$218,5,FALSE)","v":0},0]
[null,null,42,3765.4,-400,150,null,{"$f":"VLOOKUP(C97,'Surface Data 2a'!$E$10:$I$218,5,FALSE)","v":0},0]
[null,null,43,3791.3,-200,150,null,{"$f":"VLOOKUP(C98,'Surface Data 2a'!$E$10:$I$218,5,FALSE)","v":0},0]
[null,"Wheelhouse \ny = -600mm",551,-343.04,-600,-115,null,{"$f":"VLOOKUP(C99,'Surface Data 2a'!$E$10:$I$218,5,FALSE)","v":0},0]
[null,null,567,-339.45,-600,30.23,null,{"$f":"VLOOKUP(C100,'Surface Data 2a'!$E$10:$I$218,5,FALSE)","v":0},0]
[null,null,568,-318.19,-600,173.58,null,{"$f":"VLOOKUP(C101,'Surface Data 2a'!$E$10:$I$218,5,FALSE)","v":0},0]
[null,null,569,-245.15,-600,298.08,null,{"$f":"VLOOKUP(C102,'Surface Data 2a'!$E$10:$I$218,5,FALSE)","v":0},0]
[null,null,570,-127.79,-600,381.66,null,{"$f":"VLOOKUP(C103,'Surface Data 2a'!$E$10:$I$218,5,FALSE)","v":0},0]
[null,null,571,13.6,-600,409.76,null,{"$f":"VLOOKUP(C104,'Surface Data 2a'!$E$10:$I$218,5,FALSE)","v":0},0]
[null,null,572,154.19,-600,378.11,null,{"$f":"VLOOKUP(C105,'Surface Data 2a'!$E$10:$I$218,5,FALSE)","v":0},0]
[null,null,573,270.12,-600,291.95,null,{"$f":"VLOOKUP(C106,'Surface Data 2a'!$E$10:$I$218,5,FALSE)","v":0},0]
[null,null,574,351.02,-600,171.73,null,{"$f":"VLOOKUP(C107,'Surface Data 2a'!$E$10:$I$218,5,FALSE)","v":0},0]
[null,null,575,379.08,-600,30.12,null,{"$f":"VLOOKUP(C108,'Surface Data 2a'!$E$10:$I$218,5,FALSE)","v":0},0]
[null,null,556,384.79,-600,-115,null,{"$f":"VLOOKUP(C109,'Surface Data 2a'!$E$10:$I$218,5,FALSE)","v":0},0]
[null,"Wheelhouse \ny = -750mm ",550,-380.29,-750,-115,null,{"$f":"VLOOKUP(C110,'Surface Data 2a'!$E$10:$I$218,5,FALSE)","v":0},0]
[null,null,558,-377.67,-750,43.15,null,{"$f":"VLOOKUP(C111,'Surface Data 2a'!$E$10:$I$218,5,FALSE)","v":0},0]
[null,null,559,-356.53,-750,199,null,{"$f":"VLOOKUP(C112,'Surface Data 2a'!$E$10:$I$218,5,FALSE)","v":0},0]
[null,null,560,-272.73,-750,331.81,null,{"$f":"VLOOKUP(C113,'Surface Data 2a'!$E$10:$I$218,5,FALSE)","v":0},0]
[null,null,561,-143.05000000000001,-750,420.67,null,{"$f":"VLOOKUP(C114,'Surface Data 2a'!$E$10:$I$218,5,FALSE)","v":0},0]
[null,null,562,10.68,-750,452.54,null,{"$f":"VLOOKUP(C115,'Surface Data 2a'!$E$10:$I$218,5,FALSE)","v":0},0]
[null,null,563,164.46,-750,420.88,null,{"$f":"VLOOKUP(C116,'Surface Data 2a'!$E$10:$I$218,5,FALSE)","v":0},0]
[null,null,564,293.38,-750,330.82,null,{"$f":"VLOOKUP(C117,'Surface Data 2a'!$E$10:$I$218,5,FALSE)","v":0},0]
[null,null,565,378.34,-750,198.6,null,{"$f":"VLOOKUP(C118,'Surface Data 2a'!$E$10:$I$218,5,FALSE)","v":0},0]
[null,null,566,401.96,-750,43.11,null,{"$f":"VLOOKUP(C119,'Surface Data 2a'!$E$10:$I$218,5,FALSE)","v":0},0]
[null,null,557,406,-750,-115,null,{"$f":"VLOOKUP(C120,'Surface Data 2a'!$E$10:$I$218,5,FALSE)","v":0},0]
[null,"Wheelhouse \nz = 115mm & 155mm",552,-130,-479,-155,null,{"$f":"VLOOKUP(C121,'Surface Data 2a'!$E$10:$I$218,5,FALSE)","v":0},0]
[null,null,553,0,-473.4,-155,null,{"$f":"VLOOKUP(C122,'Surface Data 2a'!$E$10:$I$218,5,FALSE)","v":0},0]
[null,null,554,130,-467.81,-155,null,{"$f":"VLOOKUP(C123,'Surface Data 2a'!$E$10:$I$218,5,FALSE)","v":0},0]
[null,null,555,334.9,-506.09,-115,null,{"$f":"VLOOKUP(C124,'Surface Data 2a'!$E$10:$I$218,5,FALSE)","v":0},0]
[null,"A-Pillar",219,728.2,-733,675,null,{"$f":"VLOOKUP(C125,'Surface Data 2a'!$E$10:$I$218,5,FALSE)","v":0},0]
[null,null,220,874.3,-701.5,775,null,{"$f":"VLOOKUP(C126,'Surface Data 2a'!$E$10:$I$218,5,FALSE)","v":0},0]
[null,null,223,1018.3,-648.70000000000005,875,null,{"$f":"VLOOKUP(C127,'Surface Data 2a'!$E$10:$I$218,5,FALSE)","v":0},0]
[null,null,221,1034.3,-664.5,875,null,{"$f":"VLOOKUP(C128,'Surface Data 2a'!$E$10:$I$218,5,FALSE)","v":0},0]
[null,null,224,1060,-675.8,875,null,{"$f":"VLOOKUP(C129,'Surface Data 2a'!$E$10:$I$218,5,FALSE)","v":0},0]
[null,null,44,1100,-681.75,875,null,{"$f":"VLOOKUP(C130,'Surface Data 2a'!$E$10:$I$218,5,FALSE)","v":0},0]
[null,null,222,1219,-617,975,null,{"$f":"VLOOKUP(C131,'Surface Data 2a'!$E$10:$I$218,5,FALSE)","v":0},0]
[null,null,45,1300,-630.23,975,null,{"$f":"VLOOKUP(C132,'Surface Data 2a'!$E$10:$I$218,5,FALSE)","v":0},0]
[null,"Rearend \nz = 150mm",38,3300,-830.78,150,null,{"$f":"VLOOKUP(C133,'Surface Data 2a'!$E$10:$I$218,5,FALSE)","v":0},0]
[null,null,39,3500,-777.73,150,null,{"$f":"VLOOKUP(C134,'Surface Data 2a'!$E$10:$I$218,5,FALSE)","v":0},0]
[null,null,198,3588,-748,150,null,{"$f":"VLOOKUP(C135,'Surface Data 2a'!$E$10:$I$218,5,FALSE)","v":0},0]
[null,null,40,3656.8,-700,150,null,{"$f":"VLOOKUP(C136,'Surface Data 2a'!$E$10:$I$218,5,FALSE)","v":0},{"$f":"G136-H136","v":0}]
[null,null,42,3765.4,-400,150,null,{"$f":"VLOOKUP(C137,'Surface Data 2a'!$E$10:$I$218,5,FALSE)","v":0},0]
[null,null,207,3765,400,150,null,{"$f":"VLOOKUP(C138,'Surface Data 2a'!$E$10:$I$218,5,FALSE)","v":0},0]
[null,null,201,3656.8,700,150,null,{"$f":"VLOOKUP(C139,'Surface Data 2a'!$E$10:$I$218,5,FALSE)","v":0},0]
[null,null,206,3588,748,150,null,{"$f":"VLOOKUP(C140,'Surface Data 2a'!$E$10:$I$218,5,FALSE)","v":0},0]
[null,null,200,3500,777.7,150,null,{"$f":"VLOOKUP(C141,'Surface Data 2a'!$E$10:$I$218,5,FALSE)","v":0},0]
[null,null,199,3300,830.8,150,null,{"$f":"VLOOKUP(C142,'Surface Data 2a'!$E$10:$I$218,5,FALSE)","v":0},0]
[null,"Rearend \nz = 500mm",225,3300,-782.4,500,null,{"$f":"VLOOKUP(C143,'Surface Data 2a'!$E$10:$I$218,5,FALSE)","v":0},0]
[null,null,226,3425,-762.3,500,null,{"$f":"VLOOKUP(C144,'Surface Data 2a'!$E$10:$I$218,5,FALSE)","v":0},0]
[null,null,227,3525,-743.3,500,null,{"$f":"VLOOKUP(C145,'Surface Data 2a'!$E$10:$I$218,5,FALSE)","v":0},0]
[null,null,228,3599.5,-690,500,null,{"$f":"VLOOKUP(C146,'Surface Data 2a'!$E$10:$I$218,5,FALSE)","v":0},0]
[null,null,229,3646.2,-600,500,null,{"$f":"VLOOKUP(C147,'Surface Data 2a'!$E$10:$I$218,5,FALSE)","v":0},0]
[null,null,234,3646.2,600,500,null,{"$f":"VLOOKUP(C148,'Surface Data 2a'!$E$10:$I$218,5,FALSE)","v":0},0]
[null,null,233,3599.5,690,500,null,{"$f":"VLOOKUP(C149,'Surface Data 2a'!$E$10:$I$218,5,FALSE)","v":0},0]
[null,null,232,3525,743.3,500,null,{"$f":"VLOOKUP(C150,'Surface Data 2a'!$E$10:$I$218,5,FALSE)","v":0}]
[null,null,231,3425,762.3,500,null,{"$f":"VLOOKUP(C151,'Surface Data 2a'!$E$10:$I$218,5,FALSE)","v":0},0]
[null,null,230,3300,782.4,500,null,{"$f":"VLOOKUP(C152,'Surface Data 2a'!$E$10:$I$218,5,FALSE)","v":0},0]
[null,"C-Pillar\n(Symmetry)",260,3008.4,-677.2,775,null,{"$f":"VLOOKUP(C153,'Surface Data 2a'!$E$10:$I$218,5,FALSE)","v":0},0]
[null,null,263,2831.7,-643.29999999999995,875,null,{"$f":"VLOOKUP(C154,'Surface Data 2a'!$E$10:$I$218,5,FALSE)","v":0},0]
[null,null,133,2619.5,-600,975,null,{"$f":"VLOOKUP(C155,'Surface Data 2a'!$E$10:$I$218,5,FALSE)","v":0},0]
[null,null,272,2619.5,600,975,null,{"$f":"VLOOKUP(C156,'Surface Data 2a'!$E$10:$I$218,5,FALSE)","v":0},0]
[null,null,271,2831.7,643.29999999999995,875,null,{"$f":"VLOOKUP(C157,'Surface Data 2a'!$E$10:$I$218,5,FALSE)","v":0},0]
[null,null,270,3008.4,677.2,775,null,{"$f":"VLOOKUP(C158,'Surface Data 2a'!$E$10:$I$218,5,FALSE)","v":0},0]
[null,"C-Pillar",265,2561.1999999999998,-619.1,963.8,null,{"$f":"VLOOKUP(C159,'Surface Data 2a'!$E$10:$I$218,5,FALSE)","v":0},0]
[null,null,133,2619.5,-600,975,null,{"$f":"VLOOKUP(C160,'Surface Data 2a'!$E$10:$I$218,5,FALSE)","v":0},0]
[null,null,266,2664.2,-576,975,null,{"$f":"VLOOKUP(C161,'Surface Data 2a'!$E$10:$I$218,5,FALSE)","v":0},0]
[null,null,134,2778.4,-600,925,null,{"$f":"VLOOKUP(C162,'Surface Data 2a'!$E$10:$I$218,5,FALSE)","v":0},0]
[null,null,262,2753.8,-656.6,875,null,{"$f":"VLOOKUP(C163,'Surface Data 2a'!$E$10:$I$218,5,FALSE)","v":0},0]
[null,null,263,2831.7,-643.29999999999995,875,null,{"$f":"VLOOKUP(C164,'Surface Data 2a'!$E$10:$I$218,5,FALSE)","v":0},0]
[null,null,264,2872.8,-625.70000000000005,875,null,{"$f":"VLOOKUP(C165,'Surface Data 2a'!$E$10:$I$218,5,FALSE)","v":0},0]
[null,null,259,2930.6,-689.8,775,null,{"$f":"VLOOKUP(C166,'Surface Data 2a'!$E$10:$I$218,5,FALSE)","v":0},0]
[null,null,260,3008.4,-677.2,775,null,{"$f":"VLOOKUP(C167,'Surface Data 2a'!$E$10:$I$218,5,FALSE)","v":0},0]
[null,null,261,3085.5,-643.1,775,null,{"$f":"VLOOKUP(C168,'Surface Data 2a'!$E$10:$I$218,5,FALSE)","v":0},0]
[null,null,269,2667.9,-529.1,975,null,{"$f":"VLOOKUP(C169,'Surface Data 2a'!$E$10:$I$218,5,FALSE)","v":0},0]
[null,null,268,2897.9,-565.20000000000005,875,null,{"$f":"VLOOKUP(C170,'Surface Data 2a'!$E$10:$I$218,5,FALSE)","v":0},0]
[null,null,267,3099.9,-588.4,775,null,{"$f":"VLOOKUP(C171,'Surface Data 2a'!$E$10:$I$218,5,FALSE)","v":0},0]
[null,"Underbody \nOff-Centerline",621,540,-339.3,-120,null,{"$f":"VLOOKUP(C172,'Surface Data 2a'!$E$10:$I$218,5,FALSE)","v":0},0]
[null,null,622,750,-328.45,-120,null,{"$f":"VLOOKUP(C173,'Surface Data 2a'!$E$10:$I$218,5,FALSE)","v":0},0]
[null,null,623,1100,-360,-155.66,null,{"$f":"VLOOKUP(C174,'Surface Data 2a'!$E$10:$I$218,5,FALSE)","v":0},0]
[null,null,624,1500,-360,-150.12,null,{"$f":"VLOOKUP(C175,'Surface Data 2a'!$E$10:$I$218,5,FALSE)","v":0},0]
[null,null,625,400,-550,-159.6,null,{"$f":"VLOOKUP(C176,'Surface Data 2a'!$E$10:$I$218,5,FALSE)","v":0},0]
[null,null,626,500,-700,-159.69999999999999,null,{"$f":"VLOOKUP(C177,'Surface Data 2a'!$E$10:$I$218,5,FALSE)","v":0},0]
[null,null,627,540,-590,-164.6,null,{"$f":"VLOOKUP(C178,'Surface Data 2a'!$E$10:$I$218,5,FALSE)","v":0},0]
[null,null,628,750,-590,-160.05000000000001,null,{"$f":"VLOOKUP(C179,'Surface Data 2a'!$E$10:$I$218,5,FALSE)","v":0},0]
[null,null,629,1100,-590,-155.66,null,{"$f":"VLOOKUP(C180,'Surface Data 2a'!$E$10:$I$218,5,FALSE)","v":0},0]
[null,null,630,1500,-590,-150.12,null,{"$f":"VLOOKUP(C181,'Surface Data 2a'!$E$10:$I$218,5,FALSE)","v":0},0]
[null,null,631,2403.6999999999998,-740,-97.1,null,{"$f":"VLOOKUP(C182,'Surface Data 2a'!$E$10:$I$218,5,FALSE)","v":0},0]
[null,null,632,2793.2,-740,461.5,null,{"$f":"VLOOKUP(C183,'Surface Data 2a'!$E$10:$I$218,5,FALSE)","v":0},0]
[null,null,633,3172.9,-740,185.2,null,{"$f":"VLOOKUP(C184,'Surface Data 2a'!$E$10:$I$218,5,FALSE)","v":0},0]
[null,"Front Window",55,553.5,-200,675,null,{"$f":"VLOOKUP(C185,'Surface Data 2a'!$E$10:$I$218,5,FALSE)","v":0},0]
[null,null,59,589.20000000000005,-400,675,null,{"$f":"VLOOKUP(C186,'Surface Data 2a'!$E$10:$I$218,5,FALSE)","v":0},0]
[null,null,63,661.1,-600,675,null,{"$f":"VLOOKUP(C187,'Surface Data 2a'!$E$10:$I$218,5,FALSE)","v":0},0]
[null,null,56,718.28,-200,775,null,{"$f":"VLOOKUP(C188,'Surface Data 2a'!$E$10:$I$218,5,FALSE)","v":0},0]
[null,null,60,754.38,-400,775,null,{"$f":"VLOOKUP(C189,'Surface Data 2a'!$E$10:$I$218,5,FALSE)","v":0},0]
[null,null,64,827.65,-600,775,null,{"$f":"VLOOKUP(C190,'Surface Data 2a'!$E$10:$I$218,5,FALSE)","v":0},0]
[null,null,57,895.8,-200,875,null,{"$f":"VLOOKUP(C191,'Surface Data 2a'!$E$10:$I$218,5,FALSE)","v":0},0]
[null,null,61,932.43,-400,875,null,{"$f":"VLOOKUP(C192,'Surface Data 2a'!$E$10:$I$218,5,FALSE)","v":0},0]
[null,null,65,1007.9,-600,875,null,{"$f":"VLOOKUP(C193,'Surface Data 2a'!$E$10:$I$218,5,FALSE)","v":0},0]
[null,null,58,1095.9000000000001,-200,975,null,{"$f":"VLOOKUP(C194,'Surface Data 2a'!$E$10:$I$218,5,FALSE)","v":0},0]
[null,null,62,1134.9000000000001,-400,975,null,{"$f":"VLOOKUP(C195,'Surface Data 2a'!$E$10:$I$218,5,FALSE)","v":0},0]
[null,"Rear Window & Trunk",129,2743.55,-400,975,null,{"$f":"VLOOKUP(C196,'Surface Data 2a'!$E$10:$I$218,5,FALSE)","v":0},0]
[null,null,125,2803.68,-200,975,null,{"$f":"VLOOKUP(C197,'Surface Data 2a'!$E$10:$I$218,5,FALSE)","v":0},0]
[null,null,130,2989.1,-400,875,null,{"$f":"VLOOKUP(C198,'Surface Data 2a'!$E$10:$I$218,5,FALSE)","v":0},0]
[null,null,126,3042.9,-200,875,null,{"$f":"VLOOKUP(C199,'Surface Data 2a'!$E$10:$I$218,5,FALSE)","v":0},0]
[null,null,131,3200.9,-400,775,null,{"$f":"VLOOKUP(C200,'Surface Data 2a'!$E$10:$I$218,5,FALSE)","v":0},{"$f":"G200-H200","v":0}]
[null,null,127,3251.25,-200,775,null,{"$f":"VLOOKUP(C201,'Surface Data 2a'!$E$10:$I$218,5,FALSE)","v":0},0]
[null,null,128,3500,-200,731.48,null,{"$f":"VLOOKUP(C202,'Surface Data 2a'!$E$10:$I$218,5,FALSE)","v":0},0]
[null,null,132,3500,-400,721.2,null,{"$f":"VLOOKUP(C203,'Surface Data 2a'!$E$10:$I$218,5,FALSE)","v":0},0]
[null,"Side Window",210,1020,-720.9,775,null,{"$f":"VLOOKUP(C204,'Surface Data 2a'!$E$10:$I$218,5,FALSE)","v":0},0]
[null,null,211,1100,-698.8,830,null,{"$f":"VLOOKUP(C205,'Surface Data 2a'!$E$10:$I$218,5,FALSE)","v":0},0]
[null,null,212,1200,-676.7,880,null,{"$f":"VLOOKUP(C206,'Surface Data 2a'!$E$10:$I$218,5,FALSE)","v":0},0]
[null,null,213,1300,-654.5,925,null,{"$f":"VLOOKUP(C207,'Surface Data 2a'!$E$10:$I$218,5,FALSE)","v":0},0]
[null,null,214,1400,-641.79999999999995,950,null,{"$f":"VLOOKUP(C208,'Surface Data 2a'!$E$10:$I$218,5,FALSE)","v":0},0]
[null,null,54,1500,-628.04999999999995,975,null,{"$f":"VLOOKUP(C209,'Surface Data 2a'!$E$10:$I$218,5,FALSE)","v":0},0]
[null,null,209,1020,-741.1,725,null,{"$f":"VLOOKUP(C210,'Surface Data 2a'!$E$10:$I$218,5,FALSE)","v":0},0]
[null,null,46,1100,-723.63,775,null,{"$f":"VLOOKUP(C211,'Surface Data 2a'!$E$10:$I$218,5,FALSE)","v":0},0]
[null,null,215,1200,-706.5,820,null,{"$f":"VLOOKUP(C212,'Surface Data 2a'!$E$10:$I$218,5,FALSE)","v":0},0]
[null,null,47,1300,-681.85,875,null,{"$f":"VLOOKUP(C213,'Surface Data 2a'!$E$10:$I$218,5,FALSE)","v":0},0]
[null,null,217,1400,-681.2,880,null,{"$f":"VLOOKUP(C214,'Surface Data 2a'!$E$10:$I$218,5,FALSE)","v":0},0]
[null,null,53,1500,-685.2,875,null,{"$f":"VLOOKUP(C215,'Surface Data 2a'!$E$10:$I$218,5,FALSE)","v":0},0]
[null,null,216,1200,-724.4,780,null,{"$f":"VLOOKUP(C216,'Surface Data 2a'!$E$10:$I$218,5,FALSE)","v":0},0]
[null,null,50,1300,-728.8,775,null,{"$f":"VLOOKUP(C217,'Surface Data 2a'!$E$10:$I$218,5,FALSE)","v":0},0]
[null,null,218,1400,-728.5,780,null,{"$f":"VLOOKUP(C218,'Surface Data 2a'!$E$10:$I$218,5,FALSE)","v":0},0]
[null,null,52,1500,-731.85,775,null,{"$f":"VLOOKUP(C219,'Surface Data 2a'!$E$10:$I$218,5,FALSE)","v":0},0]
[null,null,208,1020,-759,675,null,{"$f":"VLOOKUP(C220,'Surface Data 2a'!$E$10:$I$218,5,FALSE)","v":0},0]
[null,null,48,1100,-761.53,675,null,{"$f":"VLOOKUP(C221,'Surface Data 2a'!$E$10:$I$218,5,FALSE)","v":0},0]
[null,null,49,1300,-766.35,675,null,{"$f":"VLOOKUP(C222,'Surface Data 2a'!$E$10:$I$218,5,FALSE)","v":0},0]
[null,null,51,1500,-769.13,675,null,{"$f":"VLOOKUP(C223,'Surface Data 2a'!$E$10:$I$218,5,FALSE)","v":0},0]

{"sheet":"Surface Data (Test 2b)","index":9,"n_rows":223,"n_cols":13,"rows_kept":223,"cut":false,"hidden":true,"merged":[[4,10,4,11],[152,1,157,1],[1,1,1,9],[4,6,4,7],[6,1,48,1],[49,1,70,1],[71,1,97,1],[98,1,108,1],[109,1,119,1],[120,1,123,1],[124,1,131,1],[132,1,141,1],[142,1,151,1],[158,1,170,1],[171,1,183,1],[184,1,194,1],[195,1,202,1],[203,1,222,1]]}
[]
[null,"Resorting of pressure data to enable plotting"]
[null,"To access wind tunnel test results unhide column G to I. Results will be displayed in \"Pressure Probe Plots\" sheet"]
[]
[null,null,null,null,null,null,"Cp [-]",null,"DCp[-]",null,"Cf [-]",null,"DCf[-]"]
[null,null,"Probe \n# ","X [mm]","Y [mm]","Z [mm]","Ford_Pininfarina_211125",{"$f":"'META Data'!F17","v":"ID__"},"Test - CFD",null,"CFD Reference Data",{"$f":"'META Data'!E17","v":"ID__"},"CFD - CFDRef"]
[null,"Upperbody Cenerline",1,-798.25,0,150,null,{"$f":"VLOOKUP(C7,'Surface Data 2b'!$E$10:$I$218,5,FALSE)","v":0},{"$f":"G7-H7","v":0},null,1,{"$f":"VLOOKUP(C7,'Surface Data 2b'!$E$10:$J$218,6,FALSE)","v":0},{"$f":"K7-L7","v":1}]
[null,null,195,-724.8,0,384.1,null,{"$f":"VLOOKUP(C8,'Surface Data 2b'!$E$10:$I$218,5,FALSE)","v":0},0,null,2,{"$f":"VLOOKUP(C8,'Surface Data 2b'!$E$10:$J$218,6,FALSE)","v":0},2]
[null,null,2,-700,0,406.35,null,{"$f":"VLOOKUP(C9,'Surface Data 2b'!$E$10:$I$218,5,FALSE)","v":0},0,null,3,{"$f":"VLOOKUP(C9,'Surface Data 2b'!$E$10:$J$218,6,FALSE)","v":0},3]
[null,null,3,-600,0,462.63,null,{"$f":"VLOOKUP(C10,'Surface Data 2b'!$E$10:$I$218,5,FALSE)","v":0},0,null,2,{"$f":"VLOOKUP(C10,'Surface Data 2b'!$E$10:$J$218,6,FALSE)","v":0},2]
[null,null,4,-500,0,499.45,null,{"$f":"VLOOKUP(C11,'Surface Data 2b'!$E$10:$I$218,5,FALSE)","v":0},0,null,1,{"$f":"VLOOKUP(C11,'Surface Data 2b'!$E$10:$J$218,6,FALSE)","v":0},1]
[null,null,5,-400,0,527.70000000000005,null,{"$f":"VLOOKUP(C12,'Surface Data 2b'!$E$10:$I$218,5,FALSE)","v":0},0,null,2,{"$f":"VLOOKUP(C12,'Surface Data 2b'!$E$10:$J$218,6,FALSE)","v":0},2]
[null,null,6,-300,0,550.85,null,{"$f":"VLOOKUP(C13,'Surface Data 2b'!$E$10:$I$218,5,FALSE)","v":0},0,null,3,{"$f":"VLOOKUP(C13,'Surface Data 2b'!$E$10:$J$218,6,FALSE)","v":0},3]
[null,null,7,-100,0,587.73,null,{"$f":"VLOOKUP(C14,'Surface Data 2b'!$E$10:$I$218,5,FALSE)","v":0},0,null,4,{"$f":"VLOOKUP(C14,'Surface Data 2b'!$E$10:$J$218,6,FALSE)","v":0},4]
[null,null,8,0,0,603.04999999999995,null,{"$f":"VLOOKUP(C15,'Surface Data 2b'!$E$10:$I$218,5,FALSE)","v":0},0,null,3.4285714285714199,{"$f":"VLOOKUP(C15,'Surface Data 2b'!$E$10:$J$218,6,FALSE)","v":0},3.4285714285714199]
[null,null,9,100,0,616.9,null,{"$f":"VLOOKUP(C16,'Surface Data 2b'!$E$10:$I$218,5,FALSE)","v":0},0,null,3.6904761904761898,{"$f":"VLOOKUP(C16,'Surface Data 2b'!$E$10:$J$218,6,FALSE)","v":0},3.6904761904761898]
[null,null,10,300,0,640.83000000000004,null,{"$f":"VLOOKUP(C17,'Surface Data 2b'!$E$10:$I$218,5,FALSE)","v":0},0,null,3.9523809523809499,{"$f":"VLOOKUP(C17,'Surface Data 2b'!$E$10:$J$218,6,FALSE)","v":0},3.9523809523809499]
[null,null,11,350,0,645.92999999999995,null,{"$f":"VLOOKUP(C18,'Surface Data 2b'!$E$10:$I$218,5,FALSE)","v":0},0,null,4.21428571428571,{"$f":"VLOOKUP(C18,'Surface Data 2b'!$E$10:$J$218,6,FALSE)","v":0},4.21428571428571]
[null,null,12,413.1,0,625,null,{"$f":"VLOOKUP(C19,'Surface Data 2b'!$E$10:$I$218,5,FALSE)","v":0},0,null,4.4761904761904701,{"$f":"VLOOKUP(C19,'Surface Data 2b'!$E$10:$J$218,6,FALSE)","v":0},4.4761904761904701]
[null,null,13,464.13,0,625,null,{"$f":"VLOOKUP(C20,'Surface Data 2b'!$E$10:$I$218,5,FALSE)","v":0},0,null,4.7380952380952301,{"$f":"VLOOKUP(C20,'Surface Data 2b'!$E$10:$J$218,6,FALSE)","v":0},4.7380952380952301]
[null,null,14,543.17999999999995,0,675,null,{"$f":"VLOOKUP(C21,'Surface Data 2b'!$E$10:$I$218,5,FALSE)","v":0},0,null,5,{"$f":"VLOOKUP(C21,'Surface Data 2b'!$E$10:$J$218,6,FALSE)","v":0},5]
[null,null,15,624.25,0,725,null,{"$f":"VLOOKUP(C22,'Surface Data 2b'!$E$10:$I$218,5,FALSE)","v":0},0,null,5.2619047619047601,{"$f":"VLOOKUP(C22,'Surface Data 2b'!$E$10:$J$218,6,FALSE)","v":0},5.2619047619047601]
[null,null,16,707.88,0,775,null,{"$f":"VLOOKUP(C23,'Surface Data 2b'!$E$10:$I$218,5,FALSE)","v":0},0,null,5.5238095238095202,{"$f":"VLOOKUP(C23,'Surface Data 2b'!$E$10:$J$218,6,FALSE)","v":0},5.5238095238095202]
[null,null,17,885.33,0,875,null,{"$f":"VLOOKUP(C24,'Surface Data 2b'!$E$10:$I$218,5,FALSE)","v":0},0,null,5.7857142857142803,{"$f":"VLOOKUP(C24,'Surface Data 2b'!$E$10:$J$218,6,FALSE)","v":0},5.7857142857142803]
[null,null,18,1084.9000000000001,0,975,null,{"$f":"VLOOKUP(C25,'Surface Data 2b'!$E$10:$I$218,5,FALSE)","v":0},0,null,6.0476190476190403,{"$f":"VLOOKUP(C25,'Surface Data 2b'!$E$10:$J$218,6,FALSE)","v":0},6.0476190476190403]
[null,null,19,1199,0,1025,null,{"$f":"VLOOKUP(C26,'Surface Data 2b'!$E$10:$I$218,5,FALSE)","v":0},0,null,6.3095238095238102,{"$f":"VLOOKUP(C26,'Surface Data 2b'!$E$10:$J$218,6,FALSE)","v":0},6.3095238095238102]
[null,null,20,1300,0,1051.5,null,{"$f":"VLOOKUP(C27,'Surface Data 2b'!$E$10:$I$218,5,FALSE)","v":0},0,null,6.5714285714285703,{"$f":"VLOOKUP(C27,'Surface Data 2b'!$E$10:$J$218,6,FALSE)","v":0},6.5714285714285703]
[null,null,107,1900,0,1102.4000000000001,null,{"$f":"VLOOKUP(C28,'Surface Data 2b'!$E$10:$I$218,5,FALSE)","v":0},0,null,6.8333333333333304,{"$f":"VLOOKUP(C28,'Surface Data 2b'!$E$10:$J$218,6,FALSE)","v":0},6.8333333333333304]
[null,null,108,2100,0,1100.28,null,{"$f":"VLOOKUP(C29,'Surface Data 2b'!$E$10:$I$218,5,FALSE)","v":0},0,null,7.0952380952380896,{"$f":"VLOOKUP(C29,'Surface Data 2b'!$E$10:$J$218,6,FALSE)","v":0},7.0952380952380896]
[null,null,109,2300,0,1090.3,null,{"$f":"VLOOKUP(C30,'Surface Data 2b'!$E$10:$I$218,5,FALSE)","v":0},0,null,7.3571428571428497,{"$f":"VLOOKUP(C30,'Surface Data 2b'!$E$10:$J$218,6,FALSE)","v":0},7.3571428571428497]
[null,null,110,2500,0,1067.1500000000001,null,{"$f":"VLOOKUP(C31,'Surface Data 2b'!$E$10:$I$218,5,FALSE)","v":0},0,null,7.6190476190476097,{"$f":"VLOOKUP(C31,'Surface Data 2b'!$E$10:$J$218,6,FALSE)","v":0},7.6190476190476097]
[null,null,111,2600,0,1047.75,null,{"$f":"VLOOKUP(C32,'Surface Data 2b'!$E$10:$I$218,5,FALSE)","v":0},0,null,7.8809523809523796,{"$f":"VLOOKUP(C32,'Surface Data 2b'!$E$10:$J$218,6,FALSE)","v":0},7.8809523809523796]
[null,null,112,2700,0,1017.73,null,{"$f":"VLOOKUP(C33,'Surface Data 2b'!$E$10:$I$218,5,FALSE)","v":0},0,null,8.1428571428571406,{"$f":"VLOOKUP(C33,'Surface Data 2b'!$E$10:$J$218,6,FALSE)","v":0},8.1428571428571406]
[null,null,113,2820.15,0,975,null,{"$f":"VLOOKUP(C34,'Surface Data 2b'!$E$10:$I$218,5,FALSE)","v":0},0,null,8.4047619047618998,{"$f":"VLOOKUP(C34,'Surface Data 2b'!$E$10:$J$218,6,FALSE)","v":0},8.4047619047618998]
[null,null,114,2944.43,0,925,null,{"$f":"VLOOKUP(C35,'Surface Data 2b'!$E$10:$I$218,5,FALSE)","v":0},0,null,8.6666666666666607,{"$f":"VLOOKUP(C35,'Surface Data 2b'!$E$10:$J$218,6,FALSE)","v":0},8.6666666666666607]
[null,null,115,3057.9,0,875,null,{"$f":"VLOOKUP(C36,'Surface Data 2b'!$E$10:$I$218,5,FALSE)","v":0},0,null,8.9285714285714199,{"$f":"VLOOKUP(C36,'Surface Data 2b'!$E$10:$J$218,6,FALSE)","v":0},8.9285714285714199]
[null,null,116,3164.15,0,825,null,{"$f":"VLOOKUP(C37,'Surface Data 2b'!$E$10:$I$218,5,FALSE)","v":0},0,null,9.1904761904761898,{"$f":"VLOOKUP(C37,'Surface Data 2b'!$E$10:$J$218,6,FALSE)","v":0},9.1904761904761898]
[null,null,117,3265.23,0,775,null,{"$f":"VLOOKUP(C38,'Surface Data 2b'!$E$10:$I$218,5,FALSE)","v":0},0,null,9.4523809523809508,{"$f":"VLOOKUP(C38,'Surface Data 2b'!$E$10:$J$218,6,FALSE)","v":0},9.4523809523809508]
[null,null,118,3300,0,757.33,null,{"$f":"VLOOKUP(C39,'Surface Data 2b'!$E$10:$I$218,5,FALSE)","v":0},0,null,9.71428571428571,{"$f":"VLOOKUP(C39,'Surface Data 2b'!$E$10:$J$218,6,FALSE)","v":0},9.71428571428571]
[null,null,119,3400,0,746.1,null,{"$f":"VLOOKUP(C40,'Surface Data 2b'!$E$10:$I$218,5,FALSE)","v":0},0,null,9.9761904761904692,{"$f":"VLOOKUP(C40,'Surface Data 2b'!$E$10:$J$218,6,FALSE)","v":0},9.9761904761904692]
[null,null,120,3500,0,735.35,null,{"$f":"VLOOKUP(C41,'Surface Data 2b'!$E$10:$I$218,5,FALSE)","v":0},0,null,10.2380952380952,{"$f":"VLOOKUP(C41,'Surface Data 2b'!$E$10:$J$218,6,FALSE)","v":0},10.2380952380952]
[null,null,121,3575.25,0,725,null,{"$f":"VLOOKUP(C42,'Surface Data 2b'!$E$10:$I$218,5,FALSE)","v":0},0,null,10.5,{"$f":"VLOOKUP(C42,'Surface Data 2b'!$E$10:$J$218,6,FALSE)","v":0},10.5]
[null,null,122,3700,0,717.45,null,{"$f":"VLOOKUP(C43,'Surface Data 2b'!$E$10:$I$218,5,FALSE)","v":0},0,null,10.761904761904701,{"$f":"VLOOKUP(C43,'Surface Data 2b'!$E$10:$J$218,6,FALSE)","v":0},10.761904761904701]
[null,null,123,3709.73,0,650,null,{"$f":"VLOOKUP(C44,'Surface Data 2b'!$E$10:$I$218,5,FALSE)","v":0},0,null,11.023809523809399,{"$f":"VLOOKUP(C44,'Surface Data 2b'!$E$10:$J$218,6,FALSE)","v":0},11.023809523809399]
[null,null,124,3715.28,0,600,null,{"$f":"VLOOKUP(C45,'Surface Data 2b'!$E$10:$I$218,5,FALSE)","v":0},0,null,11.2857142857141,{"$f":"VLOOKUP(C45,'Surface Data 2b'!$E$10:$J$218,6,FALSE)","v":0},11.2857142857141]
[null,null,21,3752.7,0,450,null,{"$f":"VLOOKUP(C46,'Surface Data 2b'!$E$10:$I$218,5,FALSE)","v":0},0,null,11.547619047618801,{"$f":"VLOOKUP(C46,'Surface Data 2b'!$E$10:$J$218,6,FALSE)","v":0},11.547619047618801]
[null,null,22,3757.9,0,350,null,{"$f":"VLOOKUP(C47,'Surface Data 2b'!$E$10:$I$218,5,FALSE)","v":0},0,null,11.809523809523601,{"$f":"VLOOKUP(C47,'Surface Data 2b'!$E$10:$J$218,6,FALSE)","v":0},11.809523809523601]
[null,null,23,3804.1,0,250,null,{"$f":"VLOOKUP(C48,'Surface Data 2b'!$E$10:$I$218,5,FALSE)","v":0},0,null,12.071428571428299,{"$f":"VLOOKUP(C48,'Surface Data 2b'!$E$10:$J$218,6,FALSE)","v":0},{"$f":"K48-L48","v":12.071428571428299}]
[null,null,193,3799.3,0,150,null,{"$f":"VLOOKUP(C49,'Surface Data 2b'!$E$10:$I$218,5,FALSE)","v":0},0,null,12.333333333333,{"$f":"VLOOKUP(C49,'Surface Data 2b'!$E$10:$J$218,6,FALSE)","v":0},{"$f":"K49-L49","v":12.333333333333}]
[null,"Underbody Centerline",191,-804.8,0,-103,null,{"$f":"VLOOKUP(C50,'Surface Data 2b'!$E$10:$I$218,5,FALSE)","v":0},0]
[null,null,600,-762.5,0,-111.2,null,{"$f":"VLOOKUP(C51,'Surface Data 2b'!$E$10:$I$218,5,FALSE)","v":0},0]
[null,null,601,-729.72,0,-115,null,{"$f":"VLOOKUP(C52,'Surface Data 2b'!$E$10:$I$218,5,FALSE)","v":0},0]
[null,null,602,-697,0,-118.78,null,{"$f":"VLOOKUP(C53,'Surface Data 2b'!$E$10:$I$218,5,FALSE)","v":0},0]
[null,null,603,-600,0,-130,null,{"$f":"VLOOKUP(C54,'Surface Data 2b'!$E$10:$I$218,5,FALSE)","v":0},0]
[null,null,604,-400,0,-153.125,null,{"$f":"VLOOKUP(C55,'Surface Data 2b'!$E$10:$I$218,5,FALSE)","v":0},0]
[null,null,605,-200,0,-165.55,null,{"$f":"VLOOKUP(C56,'Surface Data 2b'!$E$10:$I$218,5,FALSE)","v":0},0]
[null,null,606,0,0,-170.72499999999999,null,{"$f":"VLOOKUP(C57,'Surface Data 2b'!$E$10:$I$218,5,FALSE)","v":0},0]
[null,null,607,200,0,-170.47499999999999,null,{"$f":"VLOOKUP(C58,'Surface Data 2b'!$E$10:$I$218,5,FALSE)","v":0},0]
[null,null,608,580,0,211.4,null,{"$f":"VLOOKUP(C59,'Surface Data 2b'!$E$10:$I$218,5,FALSE)","v":0},0]
[null,null,609,900,0,154.80000000000001,null,{"$f":"VLOOKUP(C60,'Surface Data 2b'!$E$10:$I$218,5,FALSE)","v":0},0]
[null,null,610,1100,0,109.15,null,{"$f":"VLOOKUP(C61,'Surface Data 2b'!$E$10:$I$218,5,FALSE)","v":0},0]
[null,null,611,1500,0,85.27,null,{"$f":"VLOOKUP(C62,'Surface Data 2b'!$E$10:$I$218,5,FALSE)","v":0},0]
[null,null,612,1700,0,76.430000000000007,null,{"$f":"VLOOKUP(C63,'Surface Data 2b'!$E$10:$I$218,5,FALSE)","v":0},0]
[null,null,613,1900,0,67,null,{"$f":"VLOOKUP(C64,'Surface Data 2b'!$E$10:$I$218,5,FALSE)","v":0},0]
[null,null,614,2500,0,-82.77,null,{"$f":"VLOOKUP(C65,'Surface Data 2b'!$E$10:$I$218,5,FALSE)","v":0},0]
[null,null,615,2700,0,-123.43,null,{"$f":"VLOOKUP(C66,'Surface Data 2b'!$E$10:$I$218,5,FALSE)","v":0},0]
[null,null,616,2900,0,-118.44,null,{"$f":"VLOOKUP(C67,'Surface Data 2b'!$E$10:$I$218,5,FALSE)","v":0},0]
[null,null,617,3100,0,-104.17,null,{"$f":"VLOOKUP(C68,'Surface Data 2b'!$E$10:$I$218,5,FALSE)","v":0},0]
[null,null,618,3300,0,-89.08,null,{"$f":"VLOOKUP(C69,'Surface Data 2b'!$E$10:$I$218,5,FALSE)","v":0},0]
[null,null,619,3500,0,-68.5,null,{"$f":"VLOOKUP(C70,'Surface Data 2b'!$E$10:$I$218,5,FALSE)","v":0},0]
[null,null,620,3700,0,-31.07,null,{"$f":"VLOOKUP(C71,'Surface Data 2b'!$E$10:$I$218,5,FALSE)","v":0},0]
[null,"Sidewall z = 150mm",24,-793.1,-200,150,null,{"$f":"VLOOKUP(C72,'Surface Data 2b'!$E$10:$I$218,5,FALSE)","v":0},{"$f":"G72-H72","v":0}]
[null,null,25,-758.35,-400,150,null,{"$f":"VLOOKUP(C73,'Surface Data 2b'!$E$10:$I$218,5,FALSE)","v":0},0]
[null,null,26,-671.63,-600,150,null,{"$f":"VLOOKUP(C74,'Surface Data 2b'!$E$10:$I$218,5,FALSE)","v":0},0]
[null,null,202,-592,-730.5,150,null,{"$f":"VLOOKUP(C75,'Surface Data 2b'!$E$10:$I$218,5,FALSE)","v":0},0]
[null,null,27,-526.25,-800,150,null,{"$f":"VLOOKUP(C76,'Surface Data 2b'!$E$10:$I$218,5,FALSE)","v":0},0]
[null,null,196,-453,-843.4,150,null,{"$f":"VLOOKUP(C77,'Surface Data 2b'!$E$10:$I$218,5,FALSE)","v":0},0]
[null,null,203,-394,-859.9,150,null,{"$f":"VLOOKUP(C78,'Surface Data 2b'!$E$10:$I$218,5,FALSE)","v":0},0]
[null,null,197,375,-887.8,150,null,{"$f":"VLOOKUP(C79,'Surface Data 2b'!$E$10:$I$218,5,FALSE)","v":0},0]
[null,null,28,500,-880.55,150,null,{"$f":"VLOOKUP(C80,'Surface Data 2b'!$E$10:$I$218,5,FALSE)","v":0},0]
[null,null,29,700,-883.25,150,null,{"$f":"VLOOKUP(C81,'Surface Data 2b'!$E$10:$I$218,5,FALSE)","v":0},0]
[null,null,30,900,-889.2,150,null,{"$f":"VLOOKUP(C82,'Surface Data 2b'!$E$10:$I$218,5,FALSE)","v":0},0]
[null,null,31,1100,-893.23,150,null,{"$f":"VLOOKUP(C83,'Surface Data 2b'!$E$10:$I$218,5,FALSE)","v":0},0]
[null,null,32,1300,-895.28,150,null,{"$f":"VLOOKUP(C84,'Surface Data 2b'!$E$10:$I$218,5,FALSE)","v":0},0]
[null,null,33,1500,-895.4,150,null,{"$f":"VLOOKUP(C85,'Surface Data 2b'!$E$10:$I$218,5,FALSE)","v":0},0]
[null,null,34,1700,-893.55,150,null,{"$f":"VLOOKUP(C86,'Surface Data 2b'!$E$10:$I$218,5,FALSE)","v":0},0]
[null,null,35,1900,-889.7,150,null,{"$f":"VLOOKUP(C87,'Surface Data 2b'!$E$10:$I$218,5,FALSE)","v":0},0]
[null,null,36,2100,-883.78,150,null,{"$f":"VLOOKUP(C88,'Surface Data 2b'!$E$10:$I$218,5,FALSE)","v":0},0]
[null,null,37,2300,-883.98,150,null,{"$f":"VLOOKUP(C89,'Surface Data 2b'!$E$10:$I$218,5,FALSE)","v":0},0]
[null,null,204,2400,-888.9,150,null,{"$f":"VLOOKUP(C90,'Surface Data 2b'!$E$10:$I$218,5,FALSE)","v":0},0]
[null,null,205,3208,-855.5,150,null,{"$f":"VLOOKUP(C91,'Surface Data 2b'!$E$10:$I$218,5,FALSE)","v":0},0]
[null,null,38,3300,-830.78,150,null,{"$f":"VLOOKUP(C92,'Surface Data 2b'!$E$10:$I$218,5,FALSE)","v":0},0]
[null,null,39,3500,-777.73,150,null,{"$f":"VLOOKUP(C93,'Surface Data 2b'!$E$10:$I$218,5,FALSE)","v":0},0]
[null,null,198,3588,-748,150,null,{"$f":"VLOOKUP(C94,'Surface Data 2b'!$E$10:$I$218,5,FALSE)","v":0},0]
[null,null,40,3656.8,-700,150,null,{"$f":"VLOOKUP(C95,'Surface Data 2b'!$E$10:$I$218,5,FALSE)","v":0},0]
[null,null,41,3712.5,-600,150,null,{"$f":"VLOOKUP(C96,'Surface Data 2b'!$E$10:$I$218,5,FALSE)","v":0},0]
[null,null,42,3765.4,-400,150,null,{"$f":"VLOOKUP(C97,'Surface Data 2b'!$E$10:$I$218,5,FALSE)","v":0},0]
[null,null,43,3791.3,-200,150,null,{"$f":"VLOOKUP(C98,'Surface Data 2b'!$E$10:$I$218,5,FALSE)","v":0},0]
[null,"Wheelhouse \ny = -600mm",551,-343.04,-600,-115,null,{"$f":"VLOOKUP(C99,'Surface Data 2b'!$E$10:$I$218,5,FALSE)","v":0},0]
[null,null,567,-339.45,-600,30.23,null,{"$f":"VLOOKUP(C100,'Surface Data 2b'!$E$10:$I$218,5,FALSE)","v":0},0]
[null,null,568,-318.19,-600,173.58,null,{"$f":"VLOOKUP(C101,'Surface Data 2b'!$E$10:$I$218,5,FALSE)","v":0},0]
[null,null,569,-245.15,-600,298.08,null,{"$f":"VLOOKUP(C102,'Surface Data 2b'!$E$10:$I$218,5,FALSE)","v":0},0]
[null,null,570,-127.79,-600,381.66,null,{"$f":"VLOOKUP(C103,'Surface Data 2b'!$E$10:$I$218,5,FALSE)","v":0},0]
[null,null,571,13.6,-600,409.76,null,{"$f":"VLOOKUP(C104,'Surface Data 2b'!$E$10:$I$218,5,FALSE)","v":0},0]
[null,null,572,154.19,-600,378.11,null,{"$f":"VLOOKUP(C105,'Surface Data 2b'!$E$10:$I$218,5,FALSE)","v":0},0]
[null,null,573,270.12,-600,291.95,null,{"$f":"VLOOKUP(C106,'Surface Data 2b'!$E$10:$I$218,5,FALSE)","v":0},0]
[null,null,574,351.02,-600,171.73,null,{"$f":"VLOOKUP(C107,'Surface Data 2b'!$E$10:$I$218,5,FALSE)","v":0},0]
[null,null,575,379.08,-600,30.12,null,{"$f":"VLOOKUP(C108,'Surface Data 2b'!$E$10:$I$218,5,FALSE)","v":0},0]
[null,null,556,384.79,-600,-115,null,{"$f":"VLOOKUP(C109,'Surface Data 2b'!$E$10:$I$218,5,FALSE)","v":0},0]
[null,"Wheelhouse \ny = -750mm ",550,-380.29,-750,-115,null,{"$f":"VLOOKUP(C110,'Surface Data 2b'!$E$10:$I$218,5,FALSE)","v":0},0]
[null,null,558,-377.67,-750,43.15,null,{"$f":"VLOOKUP(C111,'Surface Data 2b'!$E$10:$I$218,5,FALSE)","v":0},0]
[null,null,559,-356.53,-750,199,null,{"$f":"VLOOKUP(C112,'Surface Data 2b'!$E$10:$I$218,5,FALSE)","v":0},0]
[null,null,560,-272.73,-750,331.81,null,{"$f":"VLOOKUP(C113,'Surface Data 2b'!$E$10:$I$218,5,FALSE)","v":0},0]
[null,null,561,-143.05000000000001,-750,420.67,null,{"$f":"VLOOKUP(C114,'Surface Data 2b'!$E$10:$I$218,5,FALSE)","v":0},0]
[null,null,562,10.68,-750,452.54,null,{"$f":"VLOOKUP(C115,'Surface Data 2b'!$E$10:$I$218,5,FALSE)","v":0},0]
[null,null,563,164.46,-750,420.88,null,{"$f":"VLOOKUP(C116,'Surface Data 2b'!$E$10:$I$218,5,FALSE)","v":0},0]
[null,null,564,293.38,-750,330.82,null,{"$f":"VLOOKUP(C117,'Surface Data 2b'!$E$10:$I$218,5,FALSE)","v":0},0]
[null,null,565,378.34,-750,198.6,null,{"$f":"VLOOKUP(C118,'Surface Data 2b'!$E$10:$I$218,5,FALSE)","v":0},0]
[null,null,566,401.96,-750,43.11,null,{"$f":"VLOOKUP(C119,'Surface Data 2b'!$E$10:$I$218,5,FALSE)","v":0},0]
[null,null,557,406,-750,-115,null,{"$f":"VLOOKUP(C120,'Surface Data 2b'!$E$10:$I$218,5,FALSE)","v":0},0]
[null,"Wheelhouse \nz = 115mm & 155mm",552,-130,-479,-155,null,{"$f":"VLOOKUP(C121,'Surface Data 2b'!$E$10:$I$218,5,FALSE)","v":0},0]
[null,null,553,0,-473.4,-155,null,{"$f":"VLOOKUP(C122,'Surface Data 2b'!$E$10:$I$218,5,FALSE)","v":0},0]
[null,null,554,130,-467.81,-155,null,{"$f":"VLOOKUP(C123,'Surface Data 2b'!$E$10:$I$218,5,FALSE)","v":0},0]
[null,null,555,334.9,-506.09,-115,null,{"$f":"VLOOKUP(C124,'Surface Data 2b'!$E$10:$I$218,5,FALSE)","v":0},0]
[null,"A-Pillar",219,728.2,-733,675,null,{"$f":"VLOOKUP(C125,'Surface Data 2b'!$E$10:$I$218,5,FALSE)","v":0},0]
[null,null,220,874.3,-701.5,775,null,{"$f":"VLOOKUP(C126,'Surface Data 2b'!$E$10:$I$218,5,FALSE)","v":0},0]
[null,null,223,1018.3,-648.70000000000005,875,null,{"$f":"VLOOKUP(C127,'Surface Data 2b'!$E$10:$I$218,5,FALSE)","v":0},0]
[null,null,221,1034.3,-664.5,875,null,{"$f":"VLOOKUP(C128,'Surface Data 2b'!$E$10:$I$218,5,FALSE)","v":0},0]
[null,null,224,1060,-675.8,875,null,{"$f":"VLOOKUP(C129,'Surface Data 2b'!$E$10:$I$218,5,FALSE)","v":0},0]
[null,null,44,1100,-681.75,875,null,{"$f":"VLOOKUP(C130,'Surface Data 2b'!$E$10:$I$218,5,FALSE)","v":0},0]
[null,null,222,1219,-617,975,null,{"$f":"VLOOKUP(C131,'Surface Data 2b'!$E$10:$I$218,5,FALSE)","v":0},0]
[null,null,45,1300,-630.23,975,null,{"$f":"VLOOKUP(C132,'Surface Data 2b'!$E$10:$I$218,5,FALSE)","v":0},0]
[null,"Rearend \nz = 150mm",38,3300,-830.78,150,null,{"$f":"VLOOKUP(C133,'Surface Data 2b'!$E$10:$I$218,5,FALSE)","v":0},0]
[null,null,39,3500,-777.73,150,null,{"$f":"VLOOKUP(C134,'Surface Data 2b'!$E$10:$I$218,5,FALSE)","v":0},0]
[null,null,198,3588,-748,150,null,{"$f":"VLOOKUP(C135,'Surface Data 2b'!$E$10:$I$218,5,FALSE)","v":0},0]
[null,null,40,3656.8,-700,150,null,{"$f":"VLOOKUP(C136,'Surface Data 2b'!$E$10:$I$218,5,FALSE)","v":0},{"$f":"G136-H136","v":0}]
[null,null,42,3765.4,-400,150,null,{"$f":"VLOOKUP(C137,'Surface Data 2b'!$E$10:$I$218,5,FALSE)","v":0},0]
[null,null,207,3765,400,150,null,{"$f":"VLOOKUP(C138,'Surface Data 2b'!$E$10:$I$218,5,FALSE)","v":0},0]
[null,null,201,3656.8,700,150,null,{"$f":"VLOOKUP(C139,'Surface Data 2b'!$E$10:$I$218,5,FALSE)","v":0},0]
[null,null,206,3588,748,150,null,{"$f":"VLOOKUP(C140,'Surface Data 2b'!$E$10:$I$218,5,FALSE)","v":0},0]
[null,null,200,3500,777.7,150,null,{"$f":"VLOOKUP(C141,'Surface Data 2b'!$E$10:$I$218,5,FALSE)","v":0},0]
[null,null,199,3300,830.8,150,null,{"$f":"VLOOKUP(C142,'Surface Data 2b'!$E$10:$I$218,5,FALSE)","v":0},0]
[null,"Rearend \nz = 500mm",225,3300,-782.4,500,null,{"$f":"VLOOKUP(C143,'Surface Data 2b'!$E$10:$I$218,5,FALSE)","v":0},0]
[null,null,226,3425,-762.3,500,null,{"$f":"VLOOKUP(C144,'Surface Data 2b'!$E$10:$I$218,5,FALSE)","v":0},0]
[null,null,227,3525,-743.3,500,null,{"$f":"VLOOKUP(C145,'Surface Data 2b'!$E$10:$I$218,5,FALSE)","v":0},0]
[null,null,228,3599.5,-690,500,null,{"$f":"VLOOKUP(C146,'Surface Data 2b'!$E$10:$I$218,5,FALSE)","v":0},0]
[null,null,229,3646.2,-600,500,null,{"$f":"VLOOKUP(C147,'Surface Data 2b'!$E$10:$I$218,5,FALSE)","v":0},0]
[null,null,234,3646.2,600,500,null,{"$f":"VLOOKUP(C148,'Surface Data 2b'!$E$10:$I$218,5,FALSE)","v":0},0]
[null,null,233,3599.5,690,500,null,{"$f":"VLOOKUP(C149,'Surface Data 2b'!$E$10:$I$218,5,FALSE)","v":0},0]
[null,null,232,3525,743.3,500,null,{"$f":"VLOOKUP(C150,'Surface Data 2b'!$E$10:$I$218,5,FALSE)","v":0}]
[null,null,231,3425,762.3,500,null,{"$f":"VLOOKUP(C151,'Surface Data 2b'!$E$10:$I$218,5,FALSE)","v":0},0]
[null,null,230,3300,782.4,500,null,{"$f":"VLOOKUP(C152,'Surface Data 2b'!$E$10:$I$218,5,FALSE)","v":0},0]
[null,"C-Pillar\n(Symmetry)",260,3008.4,-677.2,775,null,{"$f":"VLOOKUP(C153,'Surface Data 2b'!$E$10:$I$218,5,FALSE)","v":0},0]
[null,null,263,2831.7,-643.29999999999995,875,null,{"$f":"VLOOKUP(C154,'Surface Data 2b'!$E$10:$I$218,5,FALSE)","v":0},0]
[null,null,133,2619.5,-600,975,null,{"$f":"VLOOKUP(C155,'Surface Data 2b'!$E$10:$I$218,5,FALSE)","v":0},0]
[null,null,272,2619.5,600,975,null,{"$f":"VLOOKUP(C156,'Surface Data 2b'!$E$10:$I$218,5,FALSE)","v":0},0]
[null,null,271,2831.7,643.29999999999995,875,null,{"$f":"VLOOKUP(C157,'Surface Data 2b'!$E$10:$I$218,5,FALSE)","v":0},0]
[null,null,270,3008.4,677.2,775,null,{"$f":"VLOOKUP(C158,'Surface Data 2b'!$E$10:$I$218,5,FALSE)","v":0},0]
[null,"C-Pillar",265,2561.1999999999998,-619.1,963.8,null,{"$f":"VLOOKUP(C159,'Surface Data 2b'!$E$10:$I$218,5,FALSE)","v":0},0]
[null,null,133,2619.5,-600,975,null,{"$f":"VLOOKUP(C160,'Surface Data 2b'!$E$10:$I$218,5,FALSE)","v":0},0]
[null,null,266,2664.2,-576,975,null,{"$f":"VLOOKUP(C161,'Surface Data 2b'!$E$10:$I$218,5,FALSE)","v":0},0]
[null,null,134,2778.4,-600,925,null,{"$f":"VLOOKUP(C162,'Surface Data 2b'!$E$10:$I$218,5,FALSE)","v":0},0]
[null,null,262,2753.8,-656.6,875,null,{"$f":"VLOOKUP(C163,'Surface Data 2b'!$E$10:$I$218,5,FALSE)","v":0},0]
[null,null,263,2831.7,-643.29999999999995,875,null,{"$f":"VLOOKUP(C164,'Surface Data 2b'!$E$10:$I$218,5,FALSE)","v":0},0]
[null,null,264,2872.8,-625.70000000000005,875,null,{"$f":"VLOOKUP(C165,'Surface Data 2b'!$E$10:$I$218,5,FALSE)","v":0},0]
[null,null,259,2930.6,-689.8,775,null,{"$f":"VLOOKUP(C166,'Surface Data 2b'!$E$10:$I$218,5,FALSE)","v":0},0]
[null,null,260,3008.4,-677.2,775,null,{"$f":"VLOOKUP(C167,'Surface Data 2b'!$E$10:$I$218,5,FALSE)","v":0},0]
[null,null,261,3085.5,-643.1,775,null,{"$f":"VLOOKUP(C168,'Surface Data 2b'!$E$10:$I$218,5,FALSE)","v":0},0]
[null,null,269,2667.9,-529.1,975,null,{"$f":"VLOOKUP(C169,'Surface Data 2b'!$E$10:$I$218,5,FALSE)","v":0},0]
[null,null,268,2897.9,-565.20000000000005,875,null,{"$f":"VLOOKUP(C170,'Surface Data 2b'!$E$10:$I$218,5,FALSE)","v":0},0]
[null,null,267,3099.9,-588.4,775,null,{"$f":"VLOOKUP(C171,'Surface Data 2b'!$E$10:$I$218,5,FALSE)","v":0},0]
[null,"Underbody \nOff-Centerline",621,540,-339.3,-120,null,{"$f":"VLOOKUP(C172,'Surface Data 2b'!$E$10:$I$218,5,FALSE)","v":0},0]
[null,null,622,750,-328.45,-120,null,{"$f":"VLOOKUP(C173,'Surface Data 2b'!$E$10:$I$218,5,FALSE)","v":0},0]
[null,null,623,1100,-360,-155.66,null,{"$f":"VLOOKUP(C174,'Surface Data 2b'!$E$10:$I$218,5,FALSE)","v":0},0]
[null,null,624,1500,-360,-150.12,null,{"$f":"VLOOKUP(C175,'Surface Data 2b'!$E$10:$I$218,5,FALSE)","v":0},0]
[null,null,625,400,-550,-159.6,null,{"$f":"VLOOKUP(C176,'Surface Data 2b'!$E$10:$I$218,5,FALSE)","v":0},0]
[null,null,626,500,-700,-159.69999999999999,null,{"$f":"VLOOKUP(C177,'Surface Data 2b'!$E$10:$I$218,5,FALSE)","v":0},0]
[null,null,627,540,-590,-164.6,null,{"$f":"VLOOKUP(C178,'Surface Data 2b'!$E$10:$I$218,5,FALSE)","v":0},0]
[null,null,628,750,-590,-160.05000000000001,null,{"$f":"VLOOKUP(C179,'Surface Data 2b'!$E$10:$I$218,5,FALSE)","v":0},0]
[null,null,629,1100,-590,-155.66,null,{"$f":"VLOOKUP(C180,'Surface Data 2b'!$E$10:$I$218,5,FALSE)","v":0},0]
[null,null,630,1500,-590,-150.12,null,{"$f":"VLOOKUP(C181,'Surface Data 2b'!$E$10:$I$218,5,FALSE)","v":0},0]
[null,null,631,2403.6999999999998,-740,-97.1,null,{"$f":"VLOOKUP(C182,'Surface Data 2b'!$E$10:$I$218,5,FALSE)","v":0},0]
[null,null,632,2793.2,-740,461.5,null,{"$f":"VLOOKUP(C183,'Surface Data 2b'!$E$10:$I$218,5,FALSE)","v":0},0]
[null,null,633,3172.9,-740,185.2,null,{"$f":"VLOOKUP(C184,'Surface Data 2b'!$E$10:$I$218,5,FALSE)","v":0},0]
[null,"Front Window",55,553.5,-200,675,null,{"$f":"VLOOKUP(C185,'Surface Data 2b'!$E$10:$I$218,5,FALSE)","v":0},0]
[null,null,59,589.20000000000005,-400,675,null,{"$f":"VLOOKUP(C186,'Surface Data 2b'!$E$10:$I$218,5,FALSE)","v":0},0]
[null,null,63,661.1,-600,675,null,{"$f":"VLOOKUP(C187,'Surface Data 2b'!$E$10:$I$218,5,FALSE)","v":0},0]
[null,null,56,718.28,-200,775,null,{"$f":"VLOOKUP(C188,'Surface Data 2b'!$E$10:$I$218,5,FALSE)","v":0},0]
[null,null,60,754.38,-400,775,null,{"$f":"VLOOKUP(C189,'Surface Data 2b'!$E$10:$I$218,5,FALSE)","v":0},0]
[null,null,64,827.65,-600,775,null,{"$f":"VLOOKUP(C190,'Surface Data 2b'!$E$10:$I$218,5,FALSE)","v":0},0]
[null,null,57,895.8,-200,875,null,{"$f":"VLOOKUP(C191,'Surface Data 2b'!$E$10:$I$218,5,FALSE)","v":0},0]
[null,null,61,932.43,-400,875,null,{"$f":"VLOOKUP(C192,'Surface Data 2b'!$E$10:$I$218,5,FALSE)","v":0},0]
[null,null,65,1007.9,-600,875,null,{"$f":"VLOOKUP(C193,'Surface Data 2b'!$E$10:$I$218,5,FALSE)","v":0},0]
[null,null,58,1095.9000000000001,-200,975,null,{"$f":"VLOOKUP(C194,'Surface Data 2b'!$E$10:$I$218,5,FALSE)","v":0},0]
[null,null,62,1134.9000000000001,-400,975,null,{"$f":"VLOOKUP(C195,'Surface Data 2b'!$E$10:$I$218,5,FALSE)","v":0},0]
[null,"Rear Window & Trunk",129,2743.55,-400,975,null,{"$f":"VLOOKUP(C196,'Surface Data 2b'!$E$10:$I$218,5,FALSE)","v":0},0]
[null,null,125,2803.68,-200,975,null,{"$f":"VLOOKUP(C197,'Surface Data 2b'!$E$10:$I$218,5,FALSE)","v":0},0]
[null,null,130,2989.1,-400,875,null,{"$f":"VLOOKUP(C198,'Surface Data 2b'!$E$10:$I$218,5,FALSE)","v":0},0]
[null,null,126,3042.9,-200,875,null,{"$f":"VLOOKUP(C199,'Surface Data 2b'!$E$10:$I$218,5,FALSE)","v":0},0]
[null,null,131,3200.9,-400,775,null,{"$f":"VLOOKUP(C200,'Surface Data 2b'!$E$10:$I$218,5,FALSE)","v":0},{"$f":"G200-H200","v":0}]
[null,null,127,3251.25,-200,775,null,{"$f":"VLOOKUP(C201,'Surface Data 2b'!$E$10:$I$218,5,FALSE)","v":0},0]
[null,null,128,3500,-200,731.48,null,{"$f":"VLOOKUP(C202,'Surface Data 2b'!$E$10:$I$218,5,FALSE)","v":0},0]
[null,null,132,3500,-400,721.2,null,{"$f":"VLOOKUP(C203,'Surface Data 2b'!$E$10:$I$218,5,FALSE)","v":0},0]
[null,"Side Window",210,1020,-720.9,775,null,{"$f":"VLOOKUP(C204,'Surface Data 2b'!$E$10:$I$218,5,FALSE)","v":0},0]
[null,null,211,1100,-698.8,830,null,{"$f":"VLOOKUP(C205,'Surface Data 2b'!$E$10:$I$218,5,FALSE)","v":0},0]
[null,null,212,1200,-676.7,880,null,{"$f":"VLOOKUP(C206,'Surface Data 2b'!$E$10:$I$218,5,FALSE)","v":0},0]
[null,null,213,1300,-654.5,925,null,{"$f":"VLOOKUP(C207,'Surface Data 2b'!$E$10:$I$218,5,FALSE)","v":0},0]
[null,null,214,1400,-641.79999999999995,950,null,{"$f":"VLOOKUP(C208,'Surface Data 2b'!$E$10:$I$218,5,FALSE)","v":0},0]
[null,null,54,1500,-628.04999999999995,975,null,{"$f":"VLOOKUP(C209,'Surface Data 2b'!$E$10:$I$218,5,FALSE)","v":0},0]
[null,null,209,1020,-741.1,725,null,{"$f":"VLOOKUP(C210,'Surface Data 2b'!$E$10:$I$218,5,FALSE)","v":0},0]
[null,null,46,1100,-723.63,775,null,{"$f":"VLOOKUP(C211,'Surface Data 2b'!$E$10:$I$218,5,FALSE)","v":0},0]
[null,null,215,1200,-706.5,820,null,{"$f":"VLOOKUP(C212,'Surface Data 2b'!$E$10:$I$218,5,FALSE)","v":0},0]
[null,null,47,1300,-681.85,875,null,{"$f":"VLOOKUP(C213,'Surface Data 2b'!$E$10:$I$218,5,FALSE)","v":0},0]
[null,null,217,1400,-681.2,880,null,{"$f":"VLOOKUP(C214,'Surface Data 2b'!$E$10:$I$218,5,FALSE)","v":0},0]
[null,null,53,1500,-685.2,875,null,{"$f":"VLOOKUP(C215,'Surface Data 2b'!$E$10:$I$218,5,FALSE)","v":0},0]
[null,null,216,1200,-724.4,780,null,{"$f":"VLOOKUP(C216,'Surface Data 2b'!$E$10:$I$218,5,FALSE)","v":0},0]
[null,null,50,1300,-728.8,775,null,{"$f":"VLOOKUP(C217,'Surface Data 2b'!$E$10:$I$218,5,FALSE)","v":0},0]
[null,null,218,1400,-728.5,780,null,{"$f":"VLOOKUP(C218,'Surface Data 2b'!$E$10:$I$218,5,FALSE)","v":0},0]
[null,null,52,1500,-731.85,775,null,{"$f":"VLOOKUP(C219,'Surface Data 2b'!$E$10:$I$218,5,FALSE)","v":0},0]
[null,null,208,1020,-759,675,null,{"$f":"VLOOKUP(C220,'Surface Data 2b'!$E$10:$I$218,5,FALSE)","v":0},0]
[null,null,48,1100,-761.53,675,null,{"$f":"VLOOKUP(C221,'Surface Data 2b'!$E$10:$I$218,5,FALSE)","v":0},0]
[null,null,49,1300,-766.35,675,null,{"$f":"VLOOKUP(C222,'Surface Data 2b'!$E$10:$I$218,5,FALSE)","v":0},0]
[null,null,51,1500,-769.13,675,null,{"$f":"VLOOKUP(C223,'Surface Data 2b'!$E$10:$I$218,5,FALSE)","v":0},0]

{"sheet":"Force Plots 2a","index":10,"n_rows":1,"n_cols":2,"rows_kept":1,"cut":false,"hidden":false,"merged":[[0,1,1,13]]}
[null,"Aerodynamic Forces"]

{"sheet":"Velocity Plots 2a","index":11,"n_rows":1,"n_cols":2,"rows_kept":1,"cut":false,"hidden":false,"merged":[[0,1,1,19]]}
[null,"Velocity Profiles"]

{"sheet":"Pressure Probe Plots 2a","index":12,"n_rows":1,"n_cols":2,"rows_kept":1,"cut":false,"hidden":false,"merged":[[0,1,1,24]]}
[null,"Surface Pressure "]

{"sheet":"Skin Friction Plot 2a","index":13,"n_rows":1,"n_cols":2,"rows_kept":1,"cut":false,"hidden":false,"merged":[[0,1,1,24]]}
[null,"Surface Pressure "]

{"sheet":"Force Plots 2b","index":14,"n_rows":1,"n_cols":2,"rows_kept":1,"cut":false,"hidden":false,"merged":[[0,1,1,13]]}
[null,"Aerodynamic Forces"]

{"sheet":"Velocity Plots 2b","index":15,"n_rows":1,"n_cols":2,"rows_kept":1,"cut":false,"hidden":false,"merged":[[0,1,1,19]]}
[null,"Velocity Profiles"]

{"sheet":"Pressure Probe Plots 2b","index":16,"n_rows":1,"n_cols":2,"rows_kept":1,"cut":false,"hidden":false,"merged":[[0,1,1,24]]}
[null,"Surface Pressure "]

{"sheet":"Skin Friction Plot 2b","index":17,"n_rows":1,"n_cols":2,"rows_kept":1,"cut":false,"hidden":false,"merged":[[0,1,1,24]]}
[null,"Surface Pressure "]

{"sheet":"FlowField 2a","index":18,"n_rows":18,"n_cols":5,"rows_kept":18,"cut":false,"hidden":false,"merged":[[1,1,1,2],[2,1,5,1],[6,1,9,1],[10,1,13,1],[14,1,17,1]]}
[]
[null,null,null,{"$f":"#REF!","v":{"$error":"#REF!"}},{"$f":"'META Data'!E17","v":"ID__"}]
[null,"Wake Cross Section @ X = 4007mm","Total Pressure Coef. Cpt [-]"]
[null,null,"Static Pressure Coef. Cp [-]"]
[null,null,"Normalized Velocity V/Voo [-]"]
[null,null,"Microdrag Cdl [-]"]
[null,"Front Wheel Wake Section @ X = 407mm","Total Pressure Coef. Cpt [-]"]
[null,null,"Static Pressure Coef. Cp [-]"]
[null,null,"Normalized Velocity V/Voo [-]"]
[null,null,"Microdrag Cdl [-]"]
[null,"Vehicle Wake Cross Section @ y = 0mm","Total Pressure Coef. Cpt [-]"]
[null,null,"Static Pressure Coef. Cp [-]"]
[null,null,"Normalized Velocity V/Voo [-]"]
[null,null,"Microdrag Cdl [-]"]
[null,"Underbody Section @ z = -237mm","Total Pressure Coef. Cpt [-]"]
[null,null,"Static Pressure Coef. Cp [-]"]
[null,null,"Normalized Velocity V/Voo [-]"]
[null,null,"Microdrag Cdl [-]"]

{"sheet":"FlowField 2b","index":19,"n_rows":18,"n_cols":5,"rows_kept":18,"cut":false,"hidden":false,"merged":[[1,1,1,2],[2,1,5,1],[6,1,9,1],[10,1,13,1],[14,1,17,1]]}
[]
[null,null,null,{"$f":"#REF!","v":{"$error":"#REF!"}},{"$f":"'META Data'!F17","v":"ID__"}]
[null,"Wake Cross Section @ X = 4007mm","Total Pressure Coef. Cpt [-]"]
[null,null,"Static Pressure Coef. Cp [-]"]
[null,null,"Normalized Velocity V/Voo [-]"]
[null,null,"Microdrag Cdl [-]"]
[null,"Front Wheel Wake Section @ X = 407mm","Total Pressure Coef. Cpt [-]"]
[null,null,"Static Pressure Coef. Cp [-]"]
[null,null,"Normalized Velocity V/Voo [-]"]
[null,null,"Microdrag Cdl [-]"]
[null,"Vehicle Wake Cross Section @ y = 0mm","Total Pressure Coef. Cpt [-]"]
[null,null,"Static Pressure Coef. Cp [-]"]
[null,null,"Normalized Velocity V/Voo [-]"]
[null,null,"Microdrag Cdl [-]"]
[null,"Underbody Section @ z = -237mm","Total Pressure Coef. Cpt [-]"]
[null,null,"Static Pressure Coef. Cp [-]"]
[null,null,"Normalized Velocity V/Voo [-]"]
[null,null,"Microdrag Cdl [-]"]